Cogmind - Beta 9.6 @@@ ROGUE MODE // 2020.07.06 @ 15:45:52 // Winter2019/RPGLIKE Player: Terminus Result: Establishing 0b11! Performance ------------- Evolutions (9) 4500 Regions Visited (38) 7600 Robots Destroyed (1226) 6130 Value Destroyed (75391) 75391 Prototype IDs (119) 2380 Alien Tech Used (10) 2000 Bonus (90270) 90270 TOTAL SCORE: 188271 Bonus ------- Triggered High Security 500 High Alert Combat Kills 37511 Follower Combat Kills 2512 Network Hubs Disabled 400 Met Data Miner 300 Met Imprinter 300 Met Warlord at Base 500 MAIN.C Attacked Warlord 500 Warlord Defense Kill 2932 Built Enhanced Grunts 300 A7 Reached Mainframe 300 Met R17 at Research 2000 Met Warlord at Research 2000 Scanned by Researcher 500 Recovered Sigix Corpse 1000 Destroyed MAIN.C Guards 500 Met MAIN.C 5000 Destroyed MAIN.C Shell 5000 Destroyed MAIN.C 10000 Started Test 138-B 500 Destroyed A8 300 Destroyed A6 400 Destroyed A5 500 Destroyed A4 700 Destroyed A3 800 Destroyed A2 1000 Destroyed Architect 15000 Win 3000 Friendly Fire -3985 Cogmind --------- Core Integrity 632/700 Matter 800/800 Energy 1676/1680 System Corruption 0% Temperature Cool (4) Movement Flying (26) Location 0b11 Command Parts ------- > --- POWER (2) -------- Zero-point Reactor Zero-point Reactor > --- PROPULSION (4) --- Improved Q-thruster Improved Q-thruster Improved Q-thruster Improved Q-thruster > --- UTILITY (16) ----- Desublimator Experimental Energy Well Experimental Matter Compressor Experimental Signal Interpreter Experimental Targeting Computer Experimental Targeting Computer Experimental Targeting Computer Experimental Target Analyzer Experimental Core Analyzer Experimental Armor Integrity Analyzer Experimental Weapon Cycler Experimental Phase Shifter Experimental Force Field Deep Network Scanner Architect God Chip A Architect God Chip D > --- WEAPON (4) ------- Hypervelocity Multirail Hypervelocity Multirail Perforator > --- INVENTORY (8) ---- Experimental Energy Well (1000) Experimental Matter Compressor (500) Medium Regenerative Plating Improved System Restoration Module HERF Cannon Cooled Nova Cannon Sigix Corpse Peak State ------------ > --- POWER ------------ Zero-point Reactor Zero-point Reactor > --- PROPULSION ------- Improved Q-thruster Improved Q-thruster Improved Q-thruster Improved Q-thruster > --- UTILITY ---------- Desublimator Experimental Energy Well Experimental Matter Compressor Experimental Signal Interpreter Experimental Targeting Computer Experimental Targeting Computer Experimental Targeting Computer Experimental Target Analyzer Experimental Core Analyzer Experimental Armor Integrity Analyzer Experimental Weapon Cycler Experimental Phase Shifter Experimental Force Field Deep Network Scanner Architect God Chip A Architect God Chip D > --- WEAPON ----------- Hypervelocity Multirail Hypervelocity Multirail Perforator > --- INVENTORY -------- Experimental Energy Well Experimental Matter Compressor Medium Regenerative Plating Improved System Restoration Module High-powered Transdimensional Reconstructor HERF Cannon Cooled Nova Cannon Sigix Corpse [Rating: 269] Favorites ----------- Power Mini Fusion Reactor Engine Light Ion Engine Power Core Enhanced Nuclear Core Reactor Mini Fusion Reactor Propulsion Improved Q-thruster Leg Aluminum Leg Flight Unit Improved Q-thruster Utility Experimental Targeting Computer Device Experimental Phase Shifter Storage Experimental Matter Compressor Processor Experimental Targeting Computer Hackware Ghost Barrier Protection Medium Regenerative Plating Weapon Hypervelocity Coil Gun Energy Gun Phase Gun Energy Cannon EMDS Ballistic Gun Hypervelocity Coil Gun Ballistic Cannon Perforator Launcher Shock Bomb Launcher Special Weapon Remote Datajack Impact Weapon Core Stripper Slashing Weapon Scythe Piercing Weapon Spear Build | -11 -10 -10 -10 -9 -8 -8 -7 -7 -7 -7 -7 -7 -6 -6 -6 -6 -6 -6 -6 -5 -5 -5 -5 -5 -5 -4 -4 -4 -4 -3 -3 -3 -2 -2 -2 -1 -1 -1 ------- Run | Scr Mat Min Exi Min Mat Sto Fac Was Fac Low Low Dat Pro Fac Was Fac Low Low Zio Pro Fac Ext Cet Arc Hub Fac Upp Upp War Pro Res Tes Res Qua Sec Acc Com Ac0 Slots Evolved 22 | 4 1 . 1 . 2 1 . . . . 1 . 1 2 . 1 . . 1 . . 1 . . . 1 . . . . 1 . 1 1 . 1 1 . Power 1 | . . . . . . . . . . . . . . 1 . . . . . . . . . . . . . . . . . . . . . . . . Propulsion 3 | 1 . . . . 1 . . . . . . . . . . . . . . . . . . . . 1 . . . . . . . . . . . . Utility 15 | 2 1 . 1 . 1 1 . . . . 1 . 1 . . 1 . . 1 . . 1 . . . . . . . . 1 . 1 . . 1 1 . Weapon 3 | 1 . . . . . . . . . . . . . 1 . . . . . . . . . . . . . . . . . . . 1 . . . . Parts Attached 310 | 5 9 2 . 1 19 9 5 2 3 1 5 3 8 10 3 6 . . 1 2 14 6 8 . 13 5 . . 6 1 3 23 3 19 23 5 38 49 Power 13 | 1 . . . . 1 1 1 . . . . . 1 1 . . . . . . 2 . . . . . . . . . . 2 . . . 1 2 . Engine 3 | 1 . . . . 1 1 . . . . . . . . . . . . . . . . . . . . . . . . . . . . . . . . Core 3 | . . . . . . . 1 . . . . . 1 1 . . . . . . . . . . . . . . . . . . . . . . . . Reactor 7 | . . . . . . . . . . . . . . . . . . . . . 2 . . . . . . . . . . 2 . . . 1 2 . Propulsion 31 | 2 2 . . . 6 . 1 . 2 . . . 1 3 . . . . . . 3 . . . . 1 . . 3 . 1 4 2 . . . . . Treads . | . . . . . . . . . . . . . . . . . . . . . . . . . . . . . . . . . . . . . . . Leg 2 | 2 . . . . . . . . . . . . . . . . . . . . . . . . . . . . . . . . . . . . . . Wheel . | . . . . . . . . . . . . . . . . . . . . . . . . . . . . . . . . . . . . . . . Hover . | . . . . . . . . . . . . . . . . . . . . . . . . . . . . . . . . . . . . . . . Flight 29 | . 2 . . . 6 . 1 . 2 . . . 1 3 . . . . . . 3 . . . . 1 . . 3 . 1 4 2 . . . . . Utility 119 | . 2 2 . 1 5 . 3 2 . 1 3 3 2 4 2 2 . . 1 . 3 3 5 . 7 1 . . 3 . 2 6 1 8 9 2 20 16 Device 49 | . 1 1 . 1 1 . . 1 . . 1 . . 2 1 . . . 1 . . 1 1 . 4 . . . 3 . 1 3 1 5 2 2 7 9 Storage 11 | . . . . . . . . . . . . . . . . . . . . . . . 2 . . . . . . . . 1 . 1 . . 5 2 Processor 19 | . . . . . 2 . 1 . . . . . . 1 1 2 . . . . 2 1 . . . 1 . . . . . 2 . . 1 . 4 1 Hackware 16 | . 1 1 . . 2 . 1 1 . 1 . 3 1 . . . . . . . 1 . . . . . . . . . 1 . . . . . . 3 Protection 24 | . . . . . . . 1 . . . 2 . 1 1 . . . . . . . 1 2 . 3 . . . . . . . . 2 6 . 4 1 Artifact . | . . . . . . . . . . . . . . . . . . . . . . . . . . . . . . . . . . . . . . . Weapon 147 | 2 5 . . . 7 8 . . 1 . 2 . 4 2 1 4 . . . 2 6 3 3 . 6 3 . . . 1 . 11 . 11 14 2 16 33 Energy Gun 14 | 2 5 . . . 1 1 . . . . . . . . . . . . . . . . . . . 2 . . . 1 . 1 . . . . . 1 Energy Cannon 49 | . . . . . 2 5 . . . . . . 1 1 . . . . . . . . . . 1 . . . . . . 5 . 3 7 1 8 15 Ballistic Gun 52 | . . . . . . . . . . . . . . . 1 3 . . . 1 3 1 2 . 2 . . . . . . 3 . 5 7 1 8 15 Ballistic Cannon 6 | . . . . . . . . . . . . . . . . . . . . . . . . . . . . . . . . 2 . 2 . . . 2 Launcher 7 | . . . . . 2 2 . . . . . . 3 . . . . . . . . . . . . . . . . . . . . . . . . . Special Weapon 4 | . . . . . . . . . . . 1 . . 1 . . . . . . . 1 . . . 1 . . . . . . . . . . . . Impact Weapon 1 | . . . . . . . . . . . . . . . . . . . . . . . . . . . . . . . . . . 1 . . . . Slashing Weapon 2 | . . . . . 2 . . . . . . . . . . . . . . . . . . . . . . . . . . . . . . . . . Piercing Weapon 12 | . . . . . . . . . 1 . 1 . . . . 1 . . . 1 3 1 1 . 3 . . . . . . . . . . . . . Special Melee Weapon . | . . . . . . . . . . . . . . . . . . . . . . . . . . . . . . . . . . . . . . . Unidentified Prototypes 47 | . . . . . 2 2 1 . . . . 3 . . . . . . . . . . 1 . 5 . . . 3 . . 8 . 1 7 . 3 11 Parts Lost 3 | . . 1 . . . . 1 . . . . . . . . . . . . . 1 . . . . . . . . . . . . . . . . . Power . | . . . . . . . . . . . . . . . . . . . . . . . . . . . . . . . . . . . . . . . Propulsion 1 | . . 1 . . . . . . . . . . . . . . . . . . . . . . . . . . . . . . . . . . . . Utility 2 | . . . . . . . 1 . . . . . . . . . . . . . 1 . . . . . . . . . . . . . . . . . Weapon . | . . . . . . . . . . . . . . . . . . . . . . . . . . . . . . . . . . . . . . . Highest Loss Streak 1 | . . 1 . . . . 1 . . . . . . . . . . . . . 1 . . . . . . . . . . . . . . . . . Average Slot Usage (%) 95 | . 75 81 82 79 82 99 99 98 100 100 100 98 98 98 100 99 100 100 99 100 99 98 100 100 95 94 95 95 95 95 95 94 95 94 94 95 95 96 Engine 1 | . 11 11 10 10 8 7 2 . . . . . . . . . . . . . . . . . . . . . . . . . . . . . . . Core 2 | . . . . . . . 5 7 7 7 7 7 6 9 11 11 11 11 10 10 3 . . . . . . . . . . . . . . . . . Reactor 5 | . . . . . . . . . . . . . . . . . . . . . 6 10 10 10 10 9 9 9 9 9 9 9 8 8 8 8 7 7 Flight 16 | . 14 13 10 10 20 24 23 23 23 23 21 21 20 17 17 16 16 16 15 15 15 15 15 15 15 16 19 19 19 19 18 17 17 16 16 16 15 15 Device 12 | . 5 18 20 19 8 7 1 3 7 7 7 7 6 8 8 11 11 11 14 15 13 10 9 5 6 19 19 19 19 19 15 18 20 17 15 14 12 12 Storage 1 | . . . . . . . . . . . . . . . . . . . . . . . . 5 2 . . . . . . . . . . . 6 7 Processor 19 | . . . . . 5 7 8 7 7 7 7 7 6 5 11 19 22 22 21 21 21 21 25 25 25 24 23 23 23 23 22 22 21 20 20 24 30 33 Hackware 19 | . 7 16 20 20 23 32 35 36 38 38 35 33 39 35 31 23 22 22 21 21 21 23 20 20 17 14 14 14 14 14 17 18 17 16 16 16 6 3 Protection 1 | . . . . . . . 5 3 . . 7 7 4 2 . . . . . . . 1 5 5 4 . . . . . . . . 2 3 4 3 1 Energy Gun 1 | . 24 22 20 20 4 . . . . . . . . . . . . . . . . . . . . 4 4 4 4 4 4 . . . . . . . Energy Cannon 2 | . . . . . 5 7 7 7 7 7 7 7 2 5 . . . . . . . . . . . 4 4 4 4 4 4 7 4 2 1 . . . Ballistic Gun 5 | . . . . . . . . . . . . . . . 5 12 16 16 15 14 13 14 14 15 12 . . . . . . 1 4 5 6 7 7 6 Ballistic Cannon 1 | . . . . . . . . . . . . . . . . . . . . . . . . . . . . . . . . . . 2 4 4 3 3 Naked Turns . | . . . . . . . . . . . . . . . . . . . . . . . . . . . . . . . . . . . . . . . Heaviest Build 99 | 5 8 9 9 9 24 20 23 22 18 18 24 23 23 33 28 35 35 35 36 36 37 42 45 45 79 49 49 49 49 49 52 59 54 76 70 82 99 98 Greatest Support 94 | 20 20 9 9 9 28 28 30 30 34 34 34 34 34 37 37 49 37 37 37 37 49 46 46 46 51 63 63 63 63 63 65 75 79 79 89 89 94 94 Greatest Overweight (x) 6 | 1 . . . . 1 . . . . . . . . . . . . . . . . . . . 6 . . . . . . 3 . . . . 1 1 Average Overweight (x) . | . . . . . . . . . . . . . . . . . . . . . . . . . . . . . . . . . . . . . . . Largest Inventory Capacity 8 | 1 1 1 1 1 4 4 5 5 5 5 5 5 5 6 6 6 6 6 6 7 8 8 8 8 8 8 8 8 8 8 8 8 8 8 8 8 8 8 Average Capacity 6 | 1 1 1 1 1 2 4 4 5 5 5 5 5 5 5 6 6 6 6 6 6 7 8 8 8 8 8 8 8 8 8 8 8 8 8 8 8 8 8 Most Carried 8 | . 1 1 1 1 4 4 5 5 5 5 5 5 5 6 6 6 6 6 6 7 8 8 8 8 8 8 8 8 8 8 8 8 8 8 8 8 8 8 Average Carried 6 | . . . 1 1 2 4 3 4 5 5 4 5 5 5 5 5 6 6 6 6 7 6 7 8 7 7 8 8 7 8 7 7 7 7 8 7 7 7 Final Capacity 8 | 1 1 1 1 1 4 4 5 5 5 5 5 5 5 6 6 6 6 6 6 7 8 8 8 8 8 8 8 8 8 8 8 8 8 8 8 8 8 8 Final Carried 8 | . 1 1 1 1 4 4 5 5 5 5 5 5 5 6 6 6 6 6 6 7 7 7 8 8 8 8 8 8 8 8 8 8 7 8 8 8 5 7 Class Distribution -------------------- 67% | Wizard-Sprinter 14% | Machinist-Sprinter 8% | Hacker-Sprinter 4% | Scavenger-Mutant Dominant Class ---------------- Mutant | -10/Materials Scavenger-Mutant | -10/Mines Scavenger-Mutant | -10/Exiles Scavenger-Mutant | -9/Mines Scavenger-Mutant | -8/Materials Hacker-Sprinter | -8/Storage Hacker-Sprinter | -7/Factory Hacker-Sprinter | -7/Waste Wizard-Sprinter | -7/Factory Wizard-Sprinter | -7/Lower Caves Wizard-Sprinter | -7/Lower Caves Wizard-Sprinter | -7/Data Miner Wizard-Sprinter | -6/Proximity Caves Wizard-Sprinter | -6/Factory Wizard-Sprinter | -6/Waste Wizard-Sprinter | -6/Factory Wizard-Sprinter | -6/Lower Caves Wizard-Sprinter | -6/Lower Caves Wizard-Sprinter | -6/Zion Wizard-Sprinter | -5/Proximity Caves Wizard-Sprinter | -5/Factory Wizard-Sprinter | -5/Extension Wizard-Sprinter | -5/Cetus Wizard-Sprinter | -5/Archives Wizard-Sprinter | -5/Hub_04(d) Wizard-Sprinter | -4/Factory Wizard-Sprinter | -4/Upper Caves Wizard-Sprinter | -4/Upper Caves Wizard-Sprinter | -4/Warlord Wizard-Sprinter | -3/Proximity Caves Wizard-Sprinter | -3/Research Wizard-Sprinter | -3/Testing Wizard-Sprinter | -2/Research Wizard-Sprinter | -2/Quarantine Wizard-Sprinter | -2/Section 7 Wizard-Sprinter | -1/Access Machinist-Sprinter | -1/Command Machinist-Sprinter | -1/Access_0 Resources | -11 -10 -10 -10 -9 -8 -8 -7 -7 -7 -7 -7 -7 -6 -6 -6 -6 -6 -6 -6 -5 -5 -5 -5 -5 -5 -4 -4 -4 -4 -3 -3 -3 -2 -2 -2 -1 -1 -1 ----------- Run | Scr Mat Min Exi Min Mat Sto Fac Was Fac Low Low Dat Pro Fac Was Fac Low Low Zio Pro Fac Ext Cet Arc Hub Fac Upp Upp War Pro Res Tes Res Qua Sec Acc Com Ac0 Matter Collected 36172 | 238 102 20 . 10 210 130 4 66 30 . 65 4 266 93 385 495 170 129 60 791 1785 572 490 82 758 857 346 414 520 330 280 614 606 480 1834 1722 16624 4590 Remotely . | . . . . . . . . . . . . . . . . . . . . . . . . . . . . . . . . . . . . . . . Salvage Created 72141 | . 772 255 . 80 1613 826 . . 495 . 75 20 489 29 2089 771 203 217 . 790 3583 718 900 . 1329 1203 647 832 1537 726 941 1561 2030 928 3804 3786 34731 4161 Parts 2819 | . 29 15 . 3 85 44 6 . 27 . 1 4 28 4 47 43 14 13 . 68 210 49 56 15 79 48 29 38 52 24 27 84 81 57 162 189 975 213 Haulers Intercepted 27 | . 2 . . . 5 2 . . . . . . . . . 2 . . . . 2 . . . 1 1 . . . 1 1 1 2 1 2 4 . . Recyclers Shooed 6 | . . . . . . . . . 1 . . . . . . . . . . . 2 . . . . . . . . . . . . 1 . . 2 . Parts Field Recycled . | . . . . . . . . . . . . . . . . . . . . . . . . . . . . . . . . . . . . . . . Retrieved Matter . | . . . . . . . . . . . . . . . . . . . . . . . . . . . . . . . . . . . . . . . Parts Self-Destructed 226 | . . . . . . . . . . 4 14 . 4 . . . 14 20 . 86 . . . . . . 9 15 53 7 . . . . . . . . Prevented 129 | . . . . . . . . . . . 2 . 26 . . . . . . . . . . . . . 22 21 38 20 . . . . . . . . Kills | -11 -10 -10 -10 -9 -8 -8 -7 -7 -7 -7 -7 -7 -6 -6 -6 -6 -6 -6 -6 -5 -5 -5 -5 -5 -5 -4 -4 -4 -4 -3 -3 -3 -2 -2 -2 -1 -1 -1 ------- Run | Scr Mat Min Exi Min Mat Sto Fac Was Fac Low Low Dat Pro Fac Was Fac Low Low Zio Pro Fac Ext Cet Arc Hub Fac Upp Upp War Pro Res Tes Res Qua Sec Acc Com Ac0 Combat Hostiles Destroyed 1000 | . 10 6 . 3 24 12 1 . 6 . 1 . 10 . 6 8 5 4 . 17 38 9 9 4 11 18 18 24 23 14 10 23 25 14 45 36 517 49 Melee 5 | . . . . . . . 1 . 2 . . . . . 1 . . . . . . . . . . . . . 1 . . . . . . . . . Guns 593 | . 10 5 . 2 4 . . . . . . . . . 5 5 5 4 . 17 38 9 9 4 11 1 . . 1 . . 9 11 7 37 36 331 32 Cannons 303 | . . . . . 9 6 . . 2 . 1 . . . . . . . . . . . . . . 7 7 19 13 7 4 9 6 4 8 . 184 17 AOE 23 | . . 1 . 1 8 5 . . 1 . . . 1 . . 3 . . . . . . . . . . . 1 1 1 . . . . . . . . Classes Destroyed 30 | . 6 1 . 3 1 . 1 . . . . . 2 . 1 . . . . 1 3 . . . . . . 1 2 1 . 1 1 2 1 . 2 . Worker 40 | . 2 . . . 1 2 . . . . . . . . . 1 . . . . 5 . . . 3 5 . . . . . 2 . 1 3 4 11 . Builder 18 | . . . . . . . . . . . . . . . . . . . . . 5 2 . . . . . . . . . 3 2 . 3 3 . . Tunneler 3 | . . . . . . . . . . . . . . . . . . . . . 1 1 . . . . . . . . . . . . . 1 . . Hauler 27 | . 2 . . . 5 2 . . . . . . . . . 2 . . . . 2 . . . 1 1 . . . 1 1 1 2 1 2 4 . . Recycler 22 | . . . . 1 . . . . . . . . . . . 1 . . . . 2 2 . . 2 . . . . . . . 2 1 1 1 9 . Carrier 30 | . . . . . . . . . . . . . . . . . . . . 1 . . 1 . . 1 . . . . . . 1 . 1 . 25 . Minesweeper 1 | . . . . . . . . . . . . . . . . . . . . . . . . . . . . . . 1 . . . . . . . . Mechanic 8 | . . . . . . . . . . . . . . . . . . . . . . . . . . . . . 1 . . . . . . . 7 . Operator 8 | . 2 . . . 1 1 . . 1 . . . . 1 . 1 . . . . . . . . . . . . . . . . . . 1 . . . Watcher 57 | . 2 . . . 4 2 . . 2 . . . . . . 1 . . . . 6 2 1 . 4 2 . . . . 1 3 4 1 4 10 8 . Swarmer 132 | . 3 . . . 6 . . . . . . . . . . 3 . . . 3 . 2 2 . 4 4 5 13 1 3 . 4 9 3 . 4 63 . Saboteur 35 | . . . . . . . . . . . . . . . . . . . . . . . . . . . . . 2 . . . . . . . 33 . Grunt 313 | . 7 5 . . 7 7 . . 2 . 1 . 6 . . . 4 4 . 5 21 4 2 . 1 3 10 8 11 11 4 12 6 2 16 12 142 . Brawler 47 | . . . . . . . . . . . . . 1 . . . 1 . . 1 2 . . . . . . . 4 . . . 1 . . 1 36 . Duelist 41 | . . . . . . . . . . . . . 1 . . . . . . 4 1 . . . . . . . 2 . . 1 . . 1 . 31 . Protector 21 | . . . . . . . . . . . . . . . . . . . . . 1 . . . . . . . . . . . . . 1 . 19 . Researcher 2 | . . . . . . . . . . . . . . . . . . . . . . . . . . . . . . . . 1 . . 1 . . . Sentry 82 | . . 1 . . 9 5 . . 2 . . . 2 . . 5 . . . 2 8 3 . 4 3 6 3 3 . . 4 . 3 . 8 5 6 . Demolisher 14 | . . . . 2 . . . . . . . . . . . . . . . . . . . . . . . . . . . . . . . . 12 . Specialist 14 | . . . . . . . . . . . . . . . . . . . . . . . . . . . . . . . . . . 2 . . 12 . Hunter 100 | . . . . . 2 . . . . . . . . . . . . . . 2 1 . . . . 4 . . 1 . 2 6 3 6 7 9 57 . Programmer 88 | . . . . . . . 1 . 2 . . . . . . . . . . . 4 . . . . 1 . . 2 . . . 2 . 8 3 65 . Behemoth 8 | . . . . . . . . . . . . . . . . . . . . . . . . . . . . . . . . . 1 . 1 2 4 . Compactor 6 | . . . . . . . . . . . . . . . 6 . . . . . . . . . . . . . . . . . . . . . . . Cetus Guard 5 | . . . . . . . . . . . . . . . . . . . . . . . 5 . . . . . . . . . . . . . . . S7 Guard 1 | . . . . . . . . . . . . . . . . . . . . . . . . . . . . . . . . . . . 1 . . . M Guard 2 | . . . . . . . . . . . . . . . . . . . . . . . . . . . . . . . . . . . . . 2 . Enhanced Grunt 32 | . . . . . . . . . . . . . . . . . . . . . . . 2 . 1 . . . . . . . . . . . . 29 Enhanced Sentry 5 | . . . . . . . . . . . . . . . . . . . . . . . . . . . . . . . . . . . . . . 5 Enhanced Hunter 8 | . . . . . . . . . . . . . . . . . . . . . . . . . . . . . . . . . . . . . . 8 Lightning 3 | . . . . . . . . . . . . . . . . . . . . . . . . . 3 . . . . . . . . . . . . . Combat Programmer 2 | . . . . . . . . . . . . . . . . . . . . . . . . . . . . . . . . . . . . . 2 . Investigator 2 | . . . . . . . . . . . . . . . . . . . . . . . . . . . . . . . . . . . . . 2 . Striker 13 | . . . . . . . . . . . . . . . . . . . . . . . . . . . . . . . . . . . . . 13 . Executioner 16 | . . . . . . . . . . . . . . . . . . . . . . . . . . . . . . . . . . . . . 16 . Alpha 7 4 | . . . . . . . . . . . . . . . . . . . . . . . . . . . . . . . . . . . 2 . 2 . Fortress 1 | . . . . . . . . . . . . . . . . . . . . . . . . . . . . . . . . . . 1 . . . . Samaritan 1 | . . . . . . . . . . . . . . . . . . . . . . . . . . . . 1 . . . . . . . . . . Assembled 1 | . . . . 1 . . . . . . . . . . . . . . . . . . . . . . . . . . . . . . . . . . Thug 1 | . . . . . . . . . . . . . . . . . . . . . . . 1 . . . . . . . . . . . . . . . Guerrilla 1 | . . . . . . . . . . . . . . . . . . . . . . . 1 . . . . . . . . . . . . . . . Best Kill Streak 131 | . 4 2 . 3 9 6 1 . 2 . 1 1 4 1 1 4 3 3 . 7 10 6 4 4 6 5 8 10 10 6 5 8 14 4 13 20 131 5 Combat Bots Only 118 | . 3 2 . 2 5 3 1 . 2 . 1 . 4 . 1 3 3 3 . 7 9 3 3 4 5 5 8 10 14 5 5 7 9 3 9 12 118 5 Max Kills in Single Turn 10 | . 1 1 . 2 3 2 1 . 1 . 1 1 1 1 1 4 2 1 . 2 4 3 2 1 3 2 2 2 1 1 1 3 2 2 3 4 10 3 Gunslinging 1 | . . . . . . . . . . . . . . . . . . . . . . . 1 . 1 . . . . . . . . . . 1 1 1 Exploded 3 | . . 1 . 1 3 2 . . 1 . . . 1 . . 3 . . . . . . . . . . . 1 1 1 . . . . . . . . Melee 1 | . . . . . . . 1 . 1 . . . . . 1 . . . . . . . . . . . . . 1 . . . . . . . . . Uniques/NPCs Destroyed 10 | . . . . . . . . . . . . 1 . . . . . . . . . . 1 . . . . . . . . . . . . . 1 7 Data Miner (-7/Data Miner) A7 (-5/Cetus) MAIN.C Shell (-1/Command) MAIN.C (-1/Command) A6 (-1/Access_0) A5 (-1/Access_0) A2 (-1/Access_0) A4 (-1/Access_0) A8 (-1/Access_0) A3 (-1/Access_0) Architect (-1/Access_0) Combat | -11 -10 -10 -10 -9 -8 -8 -7 -7 -7 -7 -7 -7 -6 -6 -6 -6 -6 -6 -6 -5 -5 -5 -5 -5 -5 -4 -4 -4 -4 -3 -3 -3 -2 -2 -2 -1 -1 -1 -------- Run | Scr Mat Min Exi Min Mat Sto Fac Was Fac Low Low Dat Pro Fac Was Fac Low Low Zio Pro Fac Ext Cet Arc Hub Fac Upp Upp War Pro Res Tes Res Qua Sec Acc Com Ac0 Damage Taken 14763 | . 580 210 . 372 780 415 31 . 334 . . 188 403 . . 92 56 180 . 531 1358 90 123 50 685 374 311 201 280 353 174 304 476 414 662 415 2743 1578 Core 11395 | . 484 163 . 323 637 350 31 . 265 . . 159 301 . . 81 52 148 . 427 1128 70 82 45 441 312 253 157 229 287 136 239 405 332 469 270 1916 1203 Absorbed by Shields 4621 | . . . . . . . . . . . . . . . . . . . . . . 66 90 . . . . . . . . . . . . 331 2827 1307 Redirected to Core 9002 | . 320 153 . 177 508 222 . . 232 . . 112 194 . . 37 14 114 . 369 844 58 74 18 361 227 200 157 169 228 136 239 265 250 402 235 1696 991 Core Remaining (%) 84 | 100 . . . 33 . 27 . . . . . . 94 . . . . . . 100 . . . . 100 . . . . 100 . 100 . . 100 . . 90 Volleys Fired 1919 | . 93 26 . 13 102 35 4 . 23 . 9 . 35 6 62 34 7 12 . 52 114 36 26 6 46 55 36 40 57 32 28 50 62 33 103 78 409 195 Largest 3 | . 2 2 . 2 2 1 1 . 1 . 1 . 1 1 1 3 3 3 . 3 3 3 3 3 3 1 1 1 2 2 1 2 2 3 3 3 3 3 Hottest 200 | . 80 80 . 80 80 69 69 . 69 . 69 . 69 30 35 105 105 105 . 105 105 105 105 105 105 88 70 70 158 158 94 120 120 200 200 200 200 200 Shots Fired 3744 | . 186 52 . 26 114 35 4 . 23 . 9 . 35 6 62 100 21 36 . 156 328 106 78 18 121 55 36 40 60 33 28 59 67 45 182 167 1031 425 Gun 2681 | . 186 52 . 26 36 . . . . . . . . . 62 100 21 36 . 156 328 105 78 18 118 4 . . 14 1 3 26 30 22 137 154 689 279 Cannon 1010 | . . . . . 74 27 4 . 23 . 6 . 5 . . . . . . . . . . . 3 50 36 40 46 32 25 33 37 23 45 13 342 146 Launcher 42 | . . . . . 4 8 . . . . . . 30 . . . . . . . . . . . . . . . . . . . . . . . . . Special 11 | . . . . . . . . . . . 3 . . 6 . . . . . . . 1 . . . 1 . . . . . . . . . . . . Kinetic 2758 | . . . . . . . . . . . . . . . 62 100 21 36 . 156 328 105 78 18 118 . . . . . . 25 30 25 152 166 965 373 Thermal 328 | . 168 . . . . . . . . . . . . . . . . . . . . . . . . 4 . . 14 1 3 6 . 13 30 1 52 36 Explosive . | . . . . . . . . . . . . . . . . . . . . . . . . . . . . . . . . . . . . . . . Electromagnetic 647 | . 18 52 . 26 114 35 4 . 23 . 6 . 35 . . . . . . . . . . . 3 50 36 40 46 32 25 28 37 7 . . 14 16 Robot Hit Streak 92 | . 20 13 . 5 17 7 . . 8 . 7 . 8 4 13 12 11 10 . 13 20 20 14 3 32 26 26 28 11 15 35 15 23 23 27 34 64 92 Robot Miss Streak 13 | . 5 4 . 2 2 2 2 . 6 . 2 . 2 1 1 4 1 1 . 6 3 3 3 2 2 1 1 1 1 1 1 4 3 10 5 3 13 4 Penetration Max 4 | . . . . . . . . . . . . . . . 2 1 1 1 . 3 3 3 2 2 1 1 1 1 1 1 1 2 1 1 4 2 4 2 Secondary Targets 15 | . . . . . . . . . . . . . . . . 1 1 1 . 1 1 . 1 . 4 . . . . . . . . . . 3 1 1 Max Gunslinging Chain 2 | . . . . . . . . . . . . . . . . 1 1 1 . 1 1 . 1 . 2 . . . . . . . . . . 1 1 1 Shots Hit Robots 2718 | . 118 33 . 16 86 30 2 . 21 . 7 1 8 6 56 61 13 30 . 96 217 59 54 8 86 45 28 25 50 26 22 45 55 24 128 143 740 379 Core Hits 4456 | . 32 12 . 6 51 30 1 . 8 . 3 1 16 1 22 33 11 11 . 57 150 35 46 8 56 22 12 27 30 18 7 42 46 24 230 214 2289 905 Critical Hits 3067 | . . . . . . 1 . . 1 . . . . . 18 20 7 10 . 36 109 33 35 5 31 12 8 16 13 10 8 37 52 22 234 166 1748 435 Critical Kills 882 | . . . . . . . . . 1 . . . . . 5 8 5 4 . 11 45 15 14 4 15 6 2 9 7 5 4 21 18 11 54 57 524 37 Critical Parts Destroyed 1537 | . . . . . . 1 . . . . . . . . 3 11 2 6 . 22 62 17 21 . 15 6 6 7 6 5 3 16 24 11 103 92 875 223 Melee Attacks 144 | . . . . . 6 14 6 . 17 . 2 8 4 31 9 9 . . . 7 13 1 6 . 7 . . . . . . . . 4 . . . . Kinetic 4 | . . . . . . . . . . . . . . . . . . . . . . . . . . . . . . . . . . 4 . . . . Impact . | . . . . . . . . . . . . . . . . . . . . . . . . . . . . . . . . . . . . . . . Slashing 36 | . . . . . 6 14 6 . 10 . . . . . . . . . . . . . . . . . . . . . . . . . . . . . Piercing 104 | . . . . . . . . . 7 . 2 8 4 31 9 9 . . . 7 13 1 6 . 7 . . . . . . . . . . . . . Sneak Attacks 16 | . . . . . 1 2 . . 4 . . 1 . . . 2 . . . . . . 6 . . . . . . . . . . . . . . . Combat Hostiles 1 | . . . . . . 1 . . . . . . . . . . . . . . . . . . . . . . . . . . . . . . . . Follow-up Attacks . | . . . . . . . . . . . . . . . . . . . . . . . . . . . . . . . . . . . . . . . Damage Inflicted 65060 | . 1332 396 . 272 2468 1871 68 . 1352 . 152 84 1137 76 620 1548 141 219 . 1000 3065 670 1144 88 1274 2573 1684 2201 2782 1674 1310 2009 2528 824 2286 2214 18315 5683 Guns 28560 | . 1304 362 . 170 373 . . . . . . . . . 519 522 141 219 . 1000 2628 670 764 88 678 126 . . 289 25 . 340 409 172 1676 1754 11229 3102 Cannons 28787 | . . . . . 1558 589 . . 598 . 152 . 124 . . . . . . . . . . . 195 2447 1684 1758 2158 1412 1254 1669 2119 502 610 291 7086 2581 Explosions 5718 | . 28 34 . 102 441 946 . . 232 . . . 1013 . . 844 . . . . 437 . . . 401 . . 443 335 237 56 . . . . 169 . . Melee 1995 | . . . . . 96 336 68 . 522 . . 84 . 76 101 182 . . . . . . 380 . . . . . . . . . . 150 . . . . Ramming . | . . . . . . . . . . . . . . . . . . . . . . . . . . . . . . . . . . . . . . . Kinetic 33078 | . . . . . . . . . . . . . . . 519 522 141 219 . 1000 2628 670 764 88 678 . . . . . . 340 409 330 1905 2045 16209 4611 Thermal 7652 | . 1198 34 . 102 249 365 . . 232 . . . 72 . . 245 . . . . 240 . . . . 126 . 443 624 262 56 . . . 381 169 1884 970 Explosive 852 | . . . . . . 56 . . . . . . . . . 599 . . . . 197 . . . . . . . . . . . . . . . . . Electromagnetic 21633 | . 134 362 . 170 2123 1114 . . 598 . 152 . 1065 . . . . . . . . . . . 596 2447 1684 1758 2158 1412 1254 1669 2119 494 . . 222 102 Impact . | . . . . . . . . . . . . . . . . . . . . . . . . . . . . . . . . . . . . . . . Slashing 941 | . . . . . 96 336 68 . 441 . . . . . . . . . . . . . . . . . . . . . . . . . . . . . Piercing 904 | . . . . . . . . . 81 . . 84 . 76 101 182 . . . . . . 380 . . . . . . . . . . . . . . . Highest Corruption 7 | . . . . . . . 1 1 1 . . . . 3 . . . . . . 1 . . . . . . . 1 1 . . 1 6 7 . 2 . Average Corruption 2 | . . . . . . . 1 1 1 . . . . 2 . . . . . . 1 . . . . . . . 1 1 . . 1 3 6 . 1 . Corruption Purged 8 | . . . . . . . . . 1 . . . . 3 . . . . . . 1 . . . . . . . . . . . . . . . 3 . Effects 91 | . . . . . . . . 2 2 . . . . 4 . . . . . . 1 . . . . . . . . 3 . . 2 8 50 . 19 . Message Errors 22 | . . . . . . . . 1 1 . . . . 1 . . . . . . 1 . . . . . . . . . . . 2 2 11 . 3 . Matter Fused 8 | . . . . . . . . . . . . . . 1 . . . . . . . . . . . . . . . . . . . 1 6 . . . Heat Flow Errors 7 | . . . . . . . . . . . . . . 1 . . . . . . . . . . . . . . . . . . . . 5 . 1 . Energy Discharges 10 | . . . . . . . . . 1 . . . . 1 . . . . . . . . . . . . . . . 2 . . . 1 3 . 2 . Data Loss (minor) 12 | . . . . . . . . 1 . . . . . . . . . . . . . . . . . . . . . 1 . . . 1 7 . 2 . Misfires 2 | . . . . . . . . . . . . . . . . . . . . . . . . . . . . . . . . . . 1 1 . . . Targeting Errors 27 | . . . . . . . . . . . . . . . . . . . . . . . . . . . . . . . . . . 2 16 . 9 . Weapon Failures 3 | . . . . . . . . . . . . . . . . . . . . . . . . . . . . . . . . . . . 1 . 2 . Overload Shots 4 | . . . . . . . . . . . . . . . . . . . . . . . . . . . . . . . . . . 1 . . 3 . Overflow Damage 1535 | . . . . . 53 21 . . 341 . . . 14 . . 387 . . . . 97 . 3 . 10 103 15 93 48 48 5 139 144 . . 14 . . Projectiles 604 | . . . . . 27 . . . 101 . . . . . . . . . . . . . . . 10 103 15 33 15 12 5 139 144 . . . . . Explosions 726 | . . . . . 26 21 . . 73 . . . 14 . . 352 . . . . 97 . . . . . . 60 33 36 . . . . . 14 . . Melee 205 | . . . . . . . . . 167 . . . . . . 35 . . . . . . 3 . . . . . . . . . . . . . . . Knockbacks 141 | . . . . . . . . . . . . . . . . . . . . . . . . . . . . . . . . . . 1 3 . 85 52 Impact . | . . . . . . . . . . . . . . . . . . . . . . . . . . . . . . . . . . . . . . . Kinetic 140 | . . . . . . . . . . . . . . . . . . . . . . . . . . . . . . . . . . 1 3 . 84 52 Secondary 1 | . . . . . . . . . . . . . . . . . . . . . . . . . . . . . . . . . . . . . 1 . Self-Inflicted Damage 516 | . . . . . 75 56 . . 88 . . . 5 . . . . . . . 277 . . . 15 . . . . . . . . . . . . . Shots 12 | . . . . . 1 3 . . 1 . . . 1 . . . . . . . 4 . . . 2 . . . . . . . . . . . . . Rammed . | . . . . . . . . . . . . . . . . . . . . . . . . . . . . . . . . . . . . . . . Targets Rammed . | . . . . . . . . . . . . . . . . . . . . . . . . . . . . . . . . . . . . . . . Kicked . | . . . . . . . . . . . . . . . . . . . . . . . . . . . . . . . . . . . . . . . Crushed . | . . . . . . . . . . . . . . . . . . . . . . . . . . . . . . . . . . . . . . . Highest Temperature 302 | . 12 . . . . . 52 . 114 . 178 . 44 268 . 4 . 7 . . 57 21 9 24 242 48 9 1 130 42 90 46 168 302 174 32 174 . Average Temperature 30 | . 4 . . . . . 25 . 45 . 80 . 31 116 . 4 . 7 . . 10 6 3 7 83 10 4 1 52 9 23 8 39 89 29 26 17 . Received Heat Transfer 1906 | . 255 117 . . 207 153 . . 42 . . 24 72 . . 33 27 51 . 54 180 . . 9 90 36 36 . 18 63 30 . 36 36 117 13 80 127 Effects 1 | . . . . . . . . . . . . . . . . . . . . . . . . . 1 . . . . . . . . . . . . . Energy Bleed 1 | . . . . . . . . . . . . . . . . . . . . . . . . . 1 . . . . . . . . . . . . . Siege Activations . | . . . . . . . . . . . . . . . . . . . . . . . . . . . . . . . . . . . . . . . Robots Corrupted 84 | . . . . . 3 1 . . 2 . . . 9 . . . . . . . . . . . . 12 11 4 7 6 7 7 11 2 . . 2 . Combat Hostiles 76 | . . . . . 3 1 . . 1 . . . 9 . . . . . . . . . . . . 10 11 4 7 6 6 6 8 2 . . 2 . Parts Fried 209 | . 1 1 . . 21 6 . . 2 . . . 8 . . . . . . . . . . . 2 24 19 21 13 16 16 22 25 4 . . 5 3 Impact Corruptions . | . . . . . . . . . . . . . . . . . . . . . . . . . . . . . . . . . . . . . . . Robots Melted . | . . . . . . . . . . . . . . . . . . . . . . . . . . . . . . . . . . . . . . . Combat Hostiles . | . . . . . . . . . . . . . . . . . . . . . . . . . . . . . . . . . . . . . . . Parts Melted 6 | . 5 . . . . . . . . . . . . . . . . . . . . . . . . . . . 1 . . . . . . . . . Heat Transferred 7284 | . 2725 . . 150 300 400 . . 150 . . . 50 . . 150 . . . . 200 . . . . 148 . 250 533 277 50 . . . 444 100 861 496 Parts Sabotaged 5 | . . . . . . . . . . . . . 4 . . . . . . . . . . . . . . . 1 . . . . . . . . . Parts Stolen . | . . . . . . . . . . . . . . . . . . . . . . . . . . . . . . . . . . . . . . . Parts Stripped . | . . . . . . . . . . . . . . . . . . . . . . . . . . . . . . . . . . . . . . . Power Chain Reactions 23 | . 1 1 . 2 4 6 . . 1 . . . 2 . . . . . . . . . . . 3 . . 1 1 . 1 . . . . . . . Missiles Intercepted . | . . . . . . . . . . . . . . . . . . . . . . . . . . . . . . . . . . . . . . . Alert | -11 -10 -10 -10 -9 -8 -8 -7 -7 -7 -7 -7 -7 -6 -6 -6 -6 -6 -6 -6 -5 -5 -5 -5 -5 -5 -4 -4 -4 -4 -3 -3 -3 -2 -2 -2 -1 -1 -1 ------- Run | Scr Mat Min Exi Min Mat Sto Fac Was Fac Low Low Dat Pro Fac Was Fac Low Low Zio Pro Fac Ext Cet Arc Hub Fac Upp Upp War Pro Res Tes Res Qua Sec Acc Com Ac0 Peak Influence 10885 | . 382 289 . 55 567 368 500 126 631 . . . . 400 140 926 . . . . 884 314 616 375 1231 936 . . . . 910 616 1224 830 1182 851 10885 . Average Influence 751 | . 199 214 . 16 214 137 124 126 260 . . . . 67 126 462 . . . . 310 87 292 344 616 451 . . . . 542 96 647 294 486 406 3689 . Maximum Alert Level 5 | . 1 1 . . 2 1 2 . 2 . . . . 2 . 3 . . . . 3 1 2 1 4 3 . . . . 3 2 4 3 4 3 5 . Low Security (%) 44 | 100 43 41 . 100 51 61 81 100 52 . . . . 99 100 28 . . . . 28 86 64 . 43 1 . . . . 21 84 11 52 20 26 1 . Level 1 21 | . 56 58 . . 36 38 4 . 20 . . . . . . 20 . . . . 50 13 3 100 9 47 . . . . 8 10 26 26 25 20 9 . Level 2 13 | . . . . . 11 . 13 . 27 . . . . . . 22 . . . . 15 . 31 . . 37 . . . . 32 5 15 4 33 42 9 . Level 3 9 | . . . . . . . . . . . . . . . . 28 . . . . 5 . . . 17 13 . . . . 37 . 20 16 16 10 19 . Level 4 1 | . . . . . . . . . . . . . . . . . . . . . . . . . 28 . . . . . . . 26 . 4 . 1 . Level 5 2 | . . . . . . . . . . . . . . . . . . . . . . . . . . . . . . . . . . . . . 16 . High Security 6 | . . . . . . . . . . . . . . . . . . . . . . . . . . . . . . . . . . . . . 42 . Max Security . | . . . . . . . . . . . . . . . . . . . . . . . . . . . . . . . . . . . . . . . Squads Dispatched 97 | . 4 . . . 1 . 3 . 3 . . . 1 2 . 2 . . . 1 9 3 . . . 4 . . . . 2 5 2 1 9 9 36 . Investigation 15 | . 2 . . . . . 1 . 1 . . . . 1 . 1 . . . . . 1 . . . 2 . . . . 2 . 1 1 1 1 . . Extermination 18 | . . . . . . . 2 . 1 . . . . 1 . . . . . . 3 . . . . 1 . . . . . 3 . . 3 1 3 . Reinforcement 18 | . 2 . . . 1 . . . 1 . . . . . . 1 . . . . 1 2 . . . 1 . . . . . 2 1 . 4 2 . . Assault 40 | . . . . . . . . . . . . . 1 . . . . . . 1 2 . . . . . . . . . . . . . 1 2 33 . Garrison 6 | . . . . . . . . . . . . . . . . . . . . . 3 . . . . . . . . . . . . . . 3 . . Intercept . | . . . . . . . . . . . . . . . . . . . . . . . . . . . . . . . . . . . . . . . Construction Impeded 1 | . . . . . . . . . . . . . . . . . . . . . . 1 . . . . . . . . . . . . . . . . Haulers Reinforced 6 | . . . . . . . . . . . . . . . . 1 . . . . 1 . . . . 1 . . . . . . . . 2 1 . . Stealth | -11 -10 -10 -10 -9 -8 -8 -7 -7 -7 -7 -7 -7 -6 -6 -6 -6 -6 -6 -6 -5 -5 -5 -5 -5 -5 -4 -4 -4 -4 -3 -3 -3 -2 -2 -2 -1 -1 -1 --------- Run | Scr Mat Min Exi Min Mat Sto Fac Was Fac Low Low Dat Pro Fac Was Fac Low Low Zio Pro Fac Ext Cet Arc Hub Fac Upp Upp War Pro Res Tes Res Qua Sec Acc Com Ac0 Distress Signals 46 | . 1 . . . 3 2 . . 1 . . . . . . 3 . . . . 2 1 2 . 2 . . . . . 5 2 8 1 4 3 6 . Communications Jammed . | . . . . . . . . . . . . . . . . . . . . . . . . . . . . . . . . . . . . . . . Distress Signals . | . . . . . . . . . . . . . . . . . . . . . . . . . . . . . . . . . . . . . . . Times Spotted 1072 | . 28 10 . 5 39 21 5 . 14 . 6 4 16 7 6 21 3 4 . 27 53 18 20 4 18 17 22 20 43 15 11 28 26 12 50 40 406 53 Peak Tracking Total 40 | . 5 2 . 4 7 6 1 . 3 . 7 4 5 2 4 6 2 4 . 6 6 4 8 1 6 3 6 10 10 5 3 6 5 5 12 5 40 7 Tactical Retreats 88 | . 1 3 . 1 3 1 1 . . . . . 3 . 1 2 . 1 . 5 4 . 1 . 2 5 4 5 2 4 . 5 3 2 4 2 22 1 Traps | -11 -10 -10 -10 -9 -8 -8 -7 -7 -7 -7 -7 -7 -6 -6 -6 -6 -6 -6 -6 -5 -5 -5 -5 -5 -5 -4 -4 -4 -4 -3 -3 -3 -2 -2 -2 -1 -1 -1 ------- Run | Scr Mat Min Exi Min Mat Sto Fac Was Fac Low Low Dat Pro Fac Was Fac Low Low Zio Pro Fac Ext Cet Arc Hub Fac Upp Upp War Pro Res Tes Res Qua Sec Acc Com Ac0 Traps Triggered 21 | . . . . . . . 1 . . . . . . 2 . . . . . . 1 3 . . . . . . . . . 1 . 2 1 . 10 . Indirectly . | . . . . . . . . . . . . . . . . . . . . . . . . . . . . . . . . . . . . . . . Trap Hack Attempts . | . . . . . . . . . . . . . . . . . . . . . . . . . . . . . . . . . . . . . . . Triggered . | . . . . . . . . . . . . . . . . . . . . . . . . . . . . . . . . . . . . . . . Disarmed 15 | . . . . . . . . . . . . . . 6 . . . . . . 6 . . . . . . . . . . 3 . . . . . . Reprogrammed 4 | . . . . . . . . . . . . . . . . . . . . . . . . . . . . . . . . . . . . . 4 . Reused 3 | . . . . . . . . . . . . . . . . . . . . . . . . . . . . . . . . . . . . . 3 . Traps Extracted . | . . . . . . . . . . . . . . . . . . . . . . . . . . . . . . . . . . . . . . . Installed . | . . . . . . . . . . . . . . . . . . . . . . . . . . . . . . . . . . . . . . . Triggered 10 | . . . . . . . . . . . . . 2 . . . . . . . . . . . . . . . 4 . . 1 . . . . 3 . Machines | -11 -10 -10 -10 -9 -8 -8 -7 -7 -7 -7 -7 -7 -6 -6 -6 -6 -6 -6 -6 -5 -5 -5 -5 -5 -5 -4 -4 -4 -4 -3 -3 -3 -2 -2 -2 -1 -1 -1 ---------- Run | Scr Mat Min Exi Min Mat Sto Fac Was Fac Low Low Dat Pro Fac Was Fac Low Low Zio Pro Fac Ext Cet Arc Hub Fac Upp Upp War Pro Res Tes Res Qua Sec Acc Com Ac0 Machines Disabled 184 | . . 2 . . 3 4 2 . 2 . . 1 . 3 . 14 . . . . 39 1 2 . 25 1 7 8 1 2 4 7 2 9 30 1 5 9 Max in Single Turn 24 | . . 1 . . 1 1 1 . 2 . . 1 . 1 . 4 . . . . 22 1 . . 15 1 4 5 1 2 1 1 1 1 24 1 2 1 Garrison Access 13 | . . . . . 1 1 1 . . . . . . 1 . 2 . . . . 1 . . . 1 . . . . . 1 . . 1 1 2 . . Phase Generator 1 | . . . . . . . . . . . . . . . . . . . . . . . . . . . . . . . . . . . . . 1 . Network Hub 2 | . . . . . . . . . . . . . . . . . . . . . . . . . 2 . . . . . . . . . . . . . Energy Cycler 1 | . . . . . . . . . . . . . . . . . . . . . . . . . . . . . . . . . . . . 1 . . Machines Sabotaged . | . . . . . . . . . . . . . . . . . . . . . . . . . . . . . . . . . . . . . . . Garrisons Compromised . | . . . . . . . . . . . . . . . . . . . . . . . . . . . . . . . . . . . . . . . Overloaded Fab Kills . | . . . . . . . . . . . . . . . . . . . . . . . . . . . . . . . . . . . . . . . Fab Network Shutdowns 10 | . . . . . . . 1 . 1 . . . . 1 . 1 . . . . 1 . . . . 1 . . . . 1 1 1 . . 1 . . Hacking | -11 -10 -10 -10 -9 -8 -8 -7 -7 -7 -7 -7 -7 -6 -6 -6 -6 -6 -6 -6 -5 -5 -5 -5 -5 -5 -4 -4 -4 -4 -3 -3 -3 -2 -2 -2 -1 -1 -1 --------- Run | Scr Mat Min Exi Min Mat Sto Fac Was Fac Low Low Dat Pro Fac Was Fac Low Low Zio Pro Fac Ext Cet Arc Hub Fac Upp Upp War Pro Res Tes Res Qua Sec Acc Com Ac0 Machines Accessed 204 | . 6 . 1 . 11 15 8 . 6 . 1 4 . 18 . 13 1 . 1 . 19 11 1 . 10 5 1 1 . 1 6 13 2 15 9 12 12 1 Terminals 162 | . 5 . . . 10 14 6 . 4 . . . . 14 . 9 . . . . 14 11 1 . 9 4 1 1 . 1 4 11 1 13 8 9 12 . Fabricators 18 | . . . . . . . 1 . 2 . . . . 3 . 2 . . . . 4 . . . . 1 . . . . 1 2 1 . . 1 . . Repair Stations . | . . . . . . . . . . . . . . . . . . . . . . . . . . . . . . . . . . . . . . . Recycling Units 1 | . 1 . . . . . . . . . . . . . . . . . . . . . . . . . . . . . . . . . . . . . Scanalyzers 1 | . . . . . . . . . . . . . . . . . . . . . . . . . . . . . . . . . . 1 . . . . Garrison Access 13 | . . . . . 1 1 1 . . . . . . 1 . 2 . . . . 1 . . . 1 . . . . . 1 . . 1 1 2 . . Total Hacks 1055 | . 22 . 5 . 34 49 32 . 15 . 1 28 . 64 . 44 5 . 2 . 89 49 9 . 39 36 7 11 . 22 44 133 17 67 57 85 86 3 Successful 796 | . 18 . 5 . 30 49 27 . 14 . 1 28 . 62 . 43 5 . 2 . 80 48 9 . 37 24 5 10 . 14 21 78 11 51 26 48 47 3 Failed 256 | . 4 . . . 4 . 5 . 1 . . . . 2 . . . . . . 9 1 . . 2 11 2 1 . 8 23 55 6 15 31 37 39 . Catastrophic 58 | . . . . . 1 . . . . . . . . . . . . . . . 1 . . . . 1 . . . 3 8 13 1 3 6 10 11 . Database Lockouts 5 | . . . . . . . . . . . . . . . . 2 . . . . . . . . . 1 . . . . . . . 2 . . . . Manual 757 | . 20 . . . 30 37 27 . 10 . . . . 44 . 26 . . . . 59 36 9 . 34 30 3 3 1 14 39 94 10 56 30 66 79 . Terminals 878 | . 21 . . . 33 48 26 . 9 . . . . 47 . 30 . . . . 68 49 9 . 38 31 7 11 . 22 38 110 7 59 56 73 86 . Fabricators 112 | . . . . . . . 5 . 6 . . . . 16 . 12 . . . . 20 . . . . 5 . . . . 5 23 10 . . 10 . . Repair Stations . | . . . . . . . . . . . . . . . . . . . . . . . . . . . . . . . . . . . . . . . Recycling Units 1 | . 1 . . . . . . . . . . . . . . . . . . . . . . . . . . . . . . . . . . . . . Scanalyzers 5 | . . . . . . . . . . . . . . . . . . . . . . . . . . . . . . . . . . 5 . . . . Garrison Access 15 | . . . . . 1 1 1 . . . . . . 1 . 2 . . . . 1 . . . 1 . . . . . 1 . . 3 1 2 . . Terminal Hacks 506 | . 9 . 5 . 14 34 18 . 5 . 1 28 . 29 . 21 5 . 2 . 47 36 8 . 24 17 5 10 . 13 12 48 3 34 19 29 27 3 Record 47 | . . . 5 . . . . . . . . 11 . 1 . . 5 . . . 4 1 . . . . 4 8 . 8 . . . . . . . . Part Schematic 70 | . . . . . . 2 8 . 1 . . 8 . 7 . 6 . . 2 . 7 3 . . 3 1 . . . 3 6 7 . 1 . 3 2 . Robot Schematic 7 | . . . . . . . . . . . . 6 . . . . . . . . . 1 . . . . . . . . . . . . . . . . Prototype ID Bank 32 | . . . . . 3 9 2 . . . . 3 . 2 . 2 . . . . 3 1 . . 1 . . . . . . 3 . 1 1 . 1 . Open Door 15 | . . . . . . 4 . . . . 1 . . . . . . . . . 1 6 1 . . . . . . . . . . . 2 . . . Level Access Points 6 | . . . . . . 1 . . . . . . . . . . . . . . 1 1 . . 1 . . . . 1 . . . . 1 . . . Branch Access Points 14 | . 1 . . . 1 . 1 . 2 . . . . 1 . 1 . . . . 1 . . . . 1 1 1 . . 1 . 1 . . 1 . . Emergency Access Points 1 | . . . . . . . . . . . . . . . . . . . . . . . . . . . . . . . . 1 . . . . . . Machine Index 4 | . . . . . . . . . . . . . . 1 . 1 . . . . . . . . . . . . . . . . . . 1 . 1 . Terminal Index 16 | . 1 . . . . 1 1 . 1 . . . . 1 . 1 . . . . 1 1 . . 1 1 . . . . . 1 1 2 . 1 1 . Fabricator Index 9 | . . . . . . . 1 . 1 . . . . 1 . 1 . . . . 1 . . . . . . . . . 1 . 1 1 . 1 . . Scanalyzer Index 1 | . . . . . . . . . . . . . . . . . . . . . . . . . . . . . . . . . . 1 . . . . Garrison Index 1 | . . . . . . . . . . . . . . . . . . . . . . . . . . . . . . . . 1 . . . . . . Alert Level 88 | . 2 . . . 3 5 2 . . . . . . 3 . 4 . . . . 7 6 3 . 7 2 . 1 . 1 1 12 . 9 5 9 6 . Unreport Threat 77 | . . . . . 5 4 . . . . . . . . . 4 . . . . 10 6 4 . 3 6 . . . . 1 8 . 6 7 9 4 . Locate Traps 6 | . . . . . . . 1 . . . . . . 2 . . . . . . 2 . . . . . . . . . . . . . . 1 . . Disarm Traps 3 | . . . . . . . . . . . . . . 1 . . . . . . 1 . . . . . . . . . . 1 . . . . . . Reprogram Traps 1 | . . . . . . . . . . . . . . . . . . . . . . . . . . . . . . . . . . . . . 1 . Dispatch Records 1 | . . . . . . . . . . . . . . . . 1 . . . . . . . . . . . . . . . . . . . . . . Recall Investigation 2 | . . . . . . . . . . . . . . . . . . . . . . . . . . . . . . . . . . 1 . 1 . . Recall Extermination 10 | . . . . . . . 1 . . . . . . 1 . . . . . . 3 . . . . 1 . . . . . 4 . . . . . . Recall Reinforcements 7 | . . . . . . . . . . . . . . . . . . . . . . 1 . . . 1 . . . . . 3 . 1 . 1 . . Hauler Manifests 7 | . 1 . . . . 1 . . . . . . . 1 . . . . . . 1 . . . . 1 . . . . 1 1 . . . . . . Registered Components 1 | . . . . . . . . . . . . . . . . . . . . . . . . . . . . . . . . . . 1 . . . . Registered Prototypes 2 | . . . . . . 1 . . . . . . . . . . . . . . . . . . . . . . . . . . . . . 1 . . Zone Layout 75 | . 4 . . . 2 6 1 . . . . . . 7 . . . . . . 4 9 . . 8 3 . . . . 1 6 . 10 2 1 11 . Gate Test 138-A 1 | . . . . . . . . . . . . . . . . . . . . . . . . . . . . . . . . . . . . . . 1 Gate Test 138-B 1 | . . . . . . . . . . . . . . . . . . . . . . . . . . . . . . . . . . . . . . 1 Gate Test 138-END 1 | . . . . . . . . . . . . . . . . . . . . . . . . . . . . . . . . . . . . . . 1 Fabricator Hacks 66 | . . . . . . . 2 . 5 . . . . 9 . 8 . . . . 13 . . . . 2 . . . . 2 14 5 . . 6 . . Load Schematic 25 | . . . . . . . 1 . 2 . . . . 3 . 4 . . . . 4 . . . . 1 . . . . 1 4 2 . . 3 . . Build 41 | . . . . . . . 1 . 3 . . . . 6 . 4 . . . . 9 . . . . 1 . . . . 1 10 3 . . 3 . . Repair Station Hacks . | . . . . . . . . . . . . . . . . . . . . . . . . . . . . . . . . . . . . . . . Recycling Unit Hacks . | . . . . . . . . . . . . . . . . . . . . . . . . . . . . . . . . . . . . . . . Scanalyzer 4 | . . . . . . . . . . . . . . . . . . . . . . . . . . . . . . . . . . 4 . . . . Insert Component 4 | . . . . . . . . . . . . . . . . . . . . . . . . . . . . . . . . . . 4 . . . . Garrison Access Hacks 13 | . . . . . 1 1 1 . . . . . . 1 . 2 . . . . 1 . . . 1 . . . . . 1 . . 1 1 2 . . Seal Access 13 | . . . . . 1 1 1 . . . . . . 1 . 2 . . . . 1 . . . 1 . . . . . 1 . . 1 1 2 . . Unauthorized Hacks 207 | . 9 . . . 15 14 6 . 4 . . . . 23 . 12 . . . . 19 12 1 . 12 5 . . . 1 6 16 3 12 6 11 20 . Terminals 167 | . 8 . . . 15 14 3 . 3 . . . . 16 . 8 . . . . 12 12 1 . 12 2 . . . 1 3 11 . 12 6 8 20 . Track 21 | . 2 . . . 2 3 . . . . . . . 2 . . . . . . . . . . 2 . . . . . . 2 . . . . 8 . Assimilate 29 | . 1 . . . 4 2 2 . 2 . . . . 6 . 3 . . . . 5 . . . 1 . . . . . 1 . . . 2 . . . Botnet 97 | . 4 . . . 7 7 1 . 1 . . . . 6 . 3 . . . . 6 9 1 . 8 2 . . . 1 1 7 . 12 3 8 10 . Detonate 2 | . . . . . . . . . . . . . . . . 1 . . . . . . . . . . . . . . . . . . 1 . . . Disrupt 3 | . . . . . . 1 . . . . . . . . . . . . . . . 2 . . . . . . . . . . . . . . . . Operators 15 | . 1 . . . 2 1 . . . . . . . 2 . 1 . . . . 1 1 . . 1 . . . . . 1 2 . . . . 2 . Fabricators 39 | . . . . . . . 3 . 1 . . . . 7 . 4 . . . . 7 . . . . 3 . . . . 3 5 3 . . 3 . . Report 8 | . . . . . . . 1 . . . . . . 1 . . . . . . 1 . . . . 1 . . . . 1 1 1 . . 1 . . Prioritize 15 | . . . . . . . 1 . . . . . . 3 . 2 . . . . 3 . . . . 1 . . . . 1 2 1 . . 1 . . Siphon 16 | . . . . . . . 1 . 1 . . . . 3 . 2 . . . . 3 . . . . 1 . . . . 1 2 1 . . 1 . . Repair Stations . | . . . . . . . . . . . . . . . . . . . . . . . . . . . . . . . . . . . . . . . Recycling Units 1 | . 1 . . . . . . . . . . . . . . . . . . . . . . . . . . . . . . . . . . . . . Tunnel 1 | . 1 . . . . . . . . . . . . . . . . . . . . . . . . . . . . . . . . . . . . . Scanalyzers . | . . . . . . . . . . . . . . . . . . . . . . . . . . . . . . . . . . . . . . . Garrison Access . | . . . . . . . . . . . . . . . . . . . . . . . . . . . . . . . . . . . . . . . Data Cores Recovered 2 | . . . . . . . . . . . . . . 1 . . . . . . . . . . . . . . . . . . . . 1 . . . Used . | . . . . . . . . . . . . . . . . . . . . . . . . . . . . . . . . . . . . . . . Hacking Detections 119 | . 3 . . . 7 9 6 . 6 . . . . 11 . 9 . . . . 15 4 1 . 3 3 1 1 . . 4 8 2 9 4 7 6 . Full Trace Events 8 | . . . . . . . 1 . 1 . . . . 1 . . . . . . . . . . . 1 . . . . 2 . 1 . . 1 . . Feedback Events 3 | . . . . . . . 2 . . . . . . . . . . . . . . . . . . . . . . . . . 1 . . . . . Corruption 2 | . . . . . . . 1 . . . . . . . . . . . . . . . . . . . . . . . . . 1 . . . . . Hackware Fried 1 | . . . . . . . 1 . . . . . . . . . . . . . . . . . . . . . . . . . . . . . . . Feedback Blocked . | . . . . . . . . . . . . . . . . . . . . . . . . . . . . . . . . . . . . . . . Robot Schematics Acquired 7 | . . . . . . . . . . . . 6 . . . . . . . . . 1 . . . . . . . . . . . . . . . . Robots Built . | . . . . . . . . . . . . . . . . . . . . . . . . . . . . . . . . . . . . . . . Matter . | . . . . . . . . . . . . . . . . . . . . . . . . . . . . . . . . . . . . . . . Time . | . . . . . . . . . . . . . . . . . . . . . . . . . . . . . . . . . . . . . . . Total Robot Build Rating . | . . . . . . . . . . . . . . . . . . . . . . . . . . . . . . . . . . . . . . . Part Schematics Acquired 69 | . . . . . . 2 8 . 1 . . 8 . 7 . 6 . . 2 . 7 3 . . 3 1 . . . 3 6 7 . . . 3 2 . Parts Built 34 | . . . . . . . 1 . 2 . . . . 5 . 4 . . . . 7 . . . . 1 . . . . 1 6 4 . . 3 . . Matter 9399 | . . . . . . . 252 . 441 . . . . 1269 . 656 . . . . 2010 . . . . 351 . . . . 417 2082 880 . . 1041 . . Time 2401 | . . . . . . . 134 . 134 . . . . 415 . 235 . . . . 571 . . . . 187 . . . . 74 387 116 . . 148 . . Total Part Build Rating 241 | . . . . . . . 4 . 8 . . . . 28 . 23 . . . . 47 . . . . 7 . . . . 9 54 34 . . 27 . . Parts Repaired . | . . . . . . . . . . . . . . . . . . . . . . . . . . . . . . . . . . . . . . . Time . | . . . . . . . . . . . . . . . . . . . . . . . . . . . . . . . . . . . . . . . Parts Recycled . | . . . . . . . . . . . . . . . . . . . . . . . . . . . . . . . . . . . . . . . Recycled Matter . | . . . . . . . . . . . . . . . . . . . . . . . . . . . . . . . . . . . . . . . Retrieved Matter . | . . . . . . . . . . . . . . . . . . . . . . . . . . . . . . . . . . . . . . . Retrieved Components . | . . . . . . . . . . . . . . . . . . . . . . . . . . . . . . . . . . . . . . . Parts Scanalyzed . | . . . . . . . . . . . . . . . . . . . . . . . . . . . . . . . . . . . . . . . Part Schematics Acquired . | . . . . . . . . . . . . . . . . . . . . . . . . . . . . . . . . . . . . . . . Parts Damaged . | . . . . . . . . . . . . . . . . . . . . . . . . . . . . . . . . . . . . . . . Bothacking | -11 -10 -10 -10 -9 -8 -8 -7 -7 -7 -7 -7 -7 -6 -6 -6 -6 -6 -6 -6 -5 -5 -5 -5 -5 -5 -4 -4 -4 -4 -3 -3 -3 -2 -2 -2 -1 -1 -1 ------------ Run | Scr Mat Min Exi Min Mat Sto Fac Was Fac Low Low Dat Pro Fac Was Fac Low Low Zio Pro Fac Ext Cet Arc Hub Fac Upp Upp War Pro Res Tes Res Qua Sec Acc Com Ac0 Used RIF Installer . | . . . . . . . . . . . . . . . . . . . . . . . . . . . . . . . . . . . . . . . Robots Hacked 5 | . . . . . . . . . . . . . . 3 . . . . . . . 1 . . . 1 . . . . . . . . . . . . Non-combat 4 | . . . . . . . . . . . . . . 3 . . . . . . . . . . . 1 . . . . . . . . . . . . Combat 1 | . . . . . . . . . . . . . . . . . . . . . . 1 . . . . . . . . . . . . . . . . Robot Hacks Applied 5 | . . . . . . . . . . . . . . 3 . . . . . . . 1 . . . 1 . . . . . . . . . . . . parse_system 2 | . . . . . . . . . . . . . . 1 . . . . . . . 1 . . . . . . . . . . . . . . . . find_chute 3 | . . . . . . . . . . . . . . 2 . . . . . . . . . . . 1 . . . . . . . . . . . . Relay Couplers Released 2 | . . . . . . . . . 1 . . . . . . . . . . . . . . . . . . . . . . . 1 . . . . . Programmers 2 | . . . . . . . . . 1 . . . . . . . . . . . . . . . . . . . . . . . 1 . . . . . Robots Rewired 17 | . . . . . . . . . . . 2 . . 1 . . . . . 2 . 10 . . . . . . . . . 2 . . . . . . Allies Hacked 1 | . . . . . . . . . 1 . . . . . . . . . . . . . . . . . . . . . . . . . . . . . Hacks Repelled 1 | . . . . . . . . . . . . . . . . . . . . . . . . . . . . . 1 . . . . . . . . . Allies | -11 -10 -10 -10 -9 -8 -8 -7 -7 -7 -7 -7 -7 -6 -6 -6 -6 -6 -6 -6 -5 -5 -5 -5 -5 -5 -4 -4 -4 -4 -3 -3 -3 -2 -2 -2 -1 -1 -1 -------- Run | Scr Mat Min Exi Min Mat Sto Fac Was Fac Low Low Dat Pro Fac Was Fac Low Low Zio Pro Fac Ext Cet Arc Hub Fac Upp Upp War Pro Res Tes Res Qua Sec Acc Com Ac0 Total Allies 76 | . 1 . . . 3 2 2 . 4 . 2 . . 5 19 3 2 . . 2 5 16 5 . 1 . . . . . 1 2 . . 1 . . . Largest Group 20 | . 1 1 . . 1 3 3 3 5 5 6 2 . 3 20 20 10 6 . 2 2 13 18 5 5 . . . . . 1 2 . . 1 1 . . Highest-Rated Group 952 | . 10 10 . . 26 62 46 46 138 138 154 52 . 65 722 723 332 212 . 78 36 501 952 326 305 . . . . . 44 180 . . 26 26 . . Highest-Rated Ally 156 | . 10 10 . . 26 26 26 26 31 31 31 31 . 29 50 50 46 46 . 49 26 156 156 94 94 . . . . . 44 90 . . 26 26 . . Total Orders 20 | . . . . . 3 4 2 . 2 . . 1 . 4 . . . . . . . . 3 . . . 1 . . . . . . . . . . . STAY 5 | . . . . . . . 1 . 1 . . . . 1 . . . . . . . . 1 . . . 1 . . . . . . . . . . . GOTO 7 | . . . . . 2 2 . . . . . 1 . 1 . . . . . . . . 1 . . . . . . . . . . . . . . . FOLLOW 8 | . . . . . 1 2 1 . 1 . . . . 2 . . . . . . . . 1 . . . . . . . . . . . . . . . Ally Attacks 421 | . . . . . . . . . 4 . 50 1 . 1 . 152 . 6 . 22 . 67 73 1 20 . . . . . . 24 . . . . . . Total Damage 10124 | . . . . . . . . . 61 . 679 14 . 18 . 3797 . 69 . 496 . 1455 1703 48 768 . . . . . . 1016 . . . . . . Kills 82 | . . . . . . . . . . . 8 . . . . 29 . 1 . 6 . 12 18 . 5 . . . . . . 3 . . . . . . Allies Corrupted . | . . . . . . . . . . . . . . . . . . . . . . . . . . . . . . . . . . . . . . . Allies Melted . | . . . . . . . . . . . . . . . . . . . . . . . . . . . . . . . . . . . . . . . Intel | -11 -10 -10 -10 -9 -8 -8 -7 -7 -7 -7 -7 -7 -6 -6 -6 -6 -6 -6 -6 -5 -5 -5 -5 -5 -5 -4 -4 -4 -4 -3 -3 -3 -2 -2 -2 -1 -1 -1 ------- Run | Scr Mat Min Exi Min Mat Sto Fac Was Fac Low Low Dat Pro Fac Was Fac Low Low Zio Pro Fac Ext Cet Arc Hub Fac Upp Upp War Pro Res Tes Res Qua Sec Acc Com Ac0 Robot Analysis Total . | . . . . . . . . . . . . . . . . . . . . . . . . . . . . . . . . . . . . . . . Derelict Logs Recovered 13 | . . 2 . 2 . . . . . . . . . . . . 2 . 1 2 . . . . . . 2 2 . . . . . . . . . . Drone Launches 3 | . . . . . . . . . . . . . . . . . . . . . . . . . . . 3 . . . . . . . . . . . Drone Recoveries . | . . . . . . . . . . . . . . . . . . . . . . . . . . . . . . . . . . . . . . . Exploration | -11 -10 -10 -10 -9 -8 -8 -7 -7 -7 -7 -7 -7 -6 -6 -6 -6 -6 -6 -6 -5 -5 -5 -5 -5 -5 -4 -4 -4 -4 -3 -3 -3 -2 -2 -2 -1 -1 -1 ------------- Run | Scr Mat Min Exi Min Mat Sto Fac Was Fac Low Low Dat Pro Fac Was Fac Low Low Zio Pro Fac Ext Cet Arc Hub Fac Upp Upp War Pro Res Tes Res Qua Sec Acc Com Ac0 Turns Passed 24474 | 48 668 282 58 149 756 461 840 140 562 249 241 63 303 1209 442 1059 232 217 228 463 2181 822 385 73 435 578 267 283 416 281 321 1836 613 558 1098 773 3067 1817 Spaces Moved 33819 | 43 510 366 145 192 907 606 1257 329 697 264 326 117 460 1654 524 1424 308 349 757 550 2376 726 223 42 412 821 434 463 626 512 577 1692 1084 1240 1663 1224 4597 3322 Core 33 | 22 . . . . . . . . . . . . . . . . . . . . . . . . 9 . . . . . . 2 . . . . . . Treads . | . . . . . . . . . . . . . . . . . . . . . . . . . . . . . . . . . . . . . . . Legs 139 | 21 118 . . . . . . . . . . . . . . . . . . . . . . . . . . . . . . . . . . . . . Wheels . | . . . . . . . . . . . . . . . . . . . . . . . . . . . . . . . . . . . . . . . Hover . | . . . . . . . . . . . . . . . . . . . . . . . . . . . . . . . . . . . . . . . Flight 33647 | . 392 366 145 192 907 606 1257 329 697 264 326 117 460 1654 524 1424 308 349 757 550 2376 726 223 42 403 821 434 463 626 512 577 1690 1084 1240 1663 1224 4597 3322 Fastest Speed 20 | 50 37 37 40 40 29 29 29 29 29 29 29 29 29 29 29 20 29 29 29 29 20 29 29 29 29 26 26 26 26 26 24 22 23 26 26 26 26 26 Average Speed 28 | 94 56 39 40 40 34 29 29 29 29 29 29 29 29 29 29 28 29 29 29 29 28 29 29 29 45 27 26 26 26 26 24 22 25 26 26 26 26 26 Slowest Speed 350 | 120 120 40 40 40 120 29 29 29 29 29 29 29 32 29 29 29 29 29 29 29 29 29 29 29 350 29 26 26 29 26 26 200 26 26 26 26 86 86 Overloaded Moves 11 | . . . . . . . . . . . . . . . . 6 . . . . 5 . . . . . . . . . . . . . . . . . Propulsion Burnouts . | . . . . . . . . . . . . . . . . . . . . . . . . . . . . . . . . . . . . . . . Robots Hopped 228 | . 3 8 . 2 8 15 10 . 8 . 1 1 . 5 . 20 . . . . 19 10 . . 4 14 . . 1 . 4 18 5 14 12 14 31 1 Cave-ins Triggered 1 | . . . . . . . . . . . . . . . . . . . . . . . . . . . . . . . . . . . . . . 1 Teleports 2 | . . . . . . . . . . . . . . . . . . . . . . . . . . . . . . . . . . . . . 1 1 Exploration Rate (%) 57 | 3 73 63 54 48 82 91 21 95 16 52 50 77 61 37 89 39 54 55 79 55 41 82 62 52 38 17 73 60 63 52 13 91 27 88 75 25 82 95 Regions Visited 38 Branch Regions 25 Pre-discovered Areas 9 | . 1 . 1 . . . . . . . . 1 . . . . 1 . 2 . . . . . . . 1 1 . 1 . . . . . . . . Known Exits Taken 30 | . 1 . . . 1 1 . . 1 1 1 1 1 . . 1 1 1 1 1 1 1 1 1 1 1 1 1 1 1 1 1 1 1 1 1 1 . Unknown Exits Taken 4 | 1 . 1 1 1 . . . . . . . . . . . . . . . . . . . . . . . . . . . . . . . . . . Scrap Searched 23 | . . 2 . 1 . . . . . 1 2 . 3 . . . 1 1 2 3 . . . . . . 1 2 . 4 . . . . . . . . Spaces Dug 76 | . . . . . 3 . 4 . 6 . 2 2 3 24 . 3 . . . 6 4 . . . 6 . . . . . . 1 . 4 7 . . 1 Terrain Destroyed 905 | . 2 2 . 2 47 49 4 . 35 . 2 2 17 24 . 41 . . . 6 115 . . . 353 . 15 21 16 18 7 2 3 7 11 24 78 2 Melee 63 | . . . . . 3 . 4 . 6 . 2 2 3 24 . 3 . . . 6 4 . . . 6 . . . . . . . . . . . . . Projectile 28 | . . . . . . . . . . . . . . . . . . . . . . . . . 1 . 1 . . . . 2 3 7 11 1 . 2 AOE 814 | . 2 2 . 2 44 49 . . 29 . . . 14 . . 38 . . . . 111 . . . 346 . 14 21 16 18 7 . . . . 23 78 . Actions | -11 -10 -10 -10 -9 -8 -8 -7 -7 -7 -7 -7 -7 -6 -6 -6 -6 -6 -6 -6 -5 -5 -5 -5 -5 -5 -4 -4 -4 -4 -3 -3 -3 -2 -2 -2 -1 -1 -1 --------- Run | Scr Mat Min Exi Min Mat Sto Fac Was Fac Low Low Dat Pro Fac Was Fac Low Low Zio Pro Fac Ext Cet Arc Hub Fac Upp Upp War Pro Res Tes Res Qua Sec Acc Com Ac0 Total 45393 | 47 702 443 144 236 1222 818 1709 372 1000 435 458 132 583 2327 738 1959 434 437 764 724 3575 1243 473 88 549 1106 551 584 817 626 722 3062 1377 1425 2190 1556 5773 3992 Wait 8220 | . 87 37 . 26 153 148 436 17 263 170 101 3 53 625 132 494 116 70 7 82 1012 410 188 38 34 214 62 69 104 62 105 1264 208 97 364 237 427 305 Move 33347 | 42 503 350 144 187 891 579 1237 328 682 263 323 114 459 1644 523 1387 307 348 756 549 2339 705 222 41 403 794 433 462 623 511 568 1655 1074 1215 1638 1195 4534 3319 Hop 207 | . 3 7 . 2 7 11 10 . 6 . 1 1 . 5 . 16 . . . . 17 10 . . 4 12 . . 1 . 4 18 4 10 12 14 31 1 Pick Up 73 | . 1 1 . 1 5 1 2 1 . . . . . 2 1 2 . . . 1 3 1 3 . 4 4 . . 1 . 2 4 1 10 . 2 5 15 Fast Attach 125 | 5 3 2 . 1 10 3 3 1 1 . 2 3 5 2 . 2 . . 1 . 3 1 2 . 4 1 . . 6 1 1 16 2 5 14 . 12 13 Attach 28 | . . . . . 2 . 1 . . . . . . 1 2 . . . . . 1 . . . 3 1 . . . . 1 . 1 5 . 1 4 5 Detach 7 | . . . . . 1 . . . . . 1 . . . . . . . . . . . . . 2 . . . . . . . . 1 . . 2 . Swap 167 | . 6 . . . 7 6 1 1 2 1 3 . 3 7 1 4 . . . 2 10 5 6 . 6 3 . . . . 1 7 . 10 16 4 23 32 Drop 166 | . 6 1 . 3 12 5 4 1 3 . 1 3 . 4 3 3 . . . . 8 1 4 . 8 5 . . 6 1 2 22 3 10 7 3 14 23 Fire 1919 | . 93 26 . 13 102 35 4 . 23 . 9 . 35 6 62 34 7 12 . 52 114 36 26 6 46 55 36 40 57 32 28 50 62 33 103 78 409 195 Melee 144 | . . . . . 6 14 6 . 17 . 2 8 4 31 9 9 . . . 7 13 1 6 . 7 . . . . . . . . 4 . . . . Ram . | . . . . . . . . . . . . . . . . . . . . . . . . . . . . . . . . . . . . . . . Kick . | . . . . . . . . . . . . . . . . . . . . . . . . . . . . . . . . . . . . . . . Crush . | . . . . . . . . . . . . . . . . . . . . . . . . . . . . . . . . . . . . . . . Escape Stasis 216 | . . . . . . . . . . . . . . . . . . . . . . 33 . . . . . . . . . . . . . . 183 . Rewire 31 | . . . . . . . . . . . . . . . . . . . . 2 . 20 . . . . . . 1 . . 8 . . . . . . Trap . | . . . . . . . . . . . . . . . . . . . . . . . . . . . . . . . . . . . . . . . Miscellaneous 743 | . . 19 . 3 26 16 5 23 3 1 15 . 24 . 5 8 4 7 . 29 55 20 16 3 28 17 20 13 18 19 10 18 22 25 36 22 129 84 Route ------- -11/Scrapyard -10/Materials (discovered 5 exits: [*Mat x3] / *Min x2) -10/Mines (discovered 2 exits: [*Mat] / *Exi) -10/Exiles (discovered 2 exits: [*Min x2]) -9/Mines -8/Materials (discovered 4 exits: *Fac x3 / *Sto) -8/Storage (discovered 2 exits: *Fac / [Rec]) -7/Factory (discovered 4 exits: *Fac x2 / Low x2) -7/Waste -7/Factory (discovered 2 exits: *Low x2) -7/Lower Caves -7/Lower Caves -7/Data Miner -6/Proximity Caves -6/Factory (discovered 3 exits: *Fac / *Low x2) -6/Waste -6/Factory (discovered 3 exits: *Fac / *Low x2) -6/Lower Caves -6/Lower Caves -6/Zion -5/Proximity Caves -5/Factory (discovered 8 exits: *Fac x4 / *Upp x2 / *Ext x2) -5/Extension (discovered 3 exits: *Fac x2 / *Cet) -5/Cetus -5/Archives -5/Hub_04(d) (discovered 4 exits: *Fac x4) -4/Factory (discovered 3 exits: *Res / *Upp x2) -4/Upper Caves -4/Upper Caves (discovered 2 exits: Res / *War) -4/Warlord -3/Proximity Caves -3/Research (discovered 4 exits: Res / Arm / *Tes x2) -3/Testing -2/Research (discovered 2 exits: *Qua x2) -2/Quarantine (discovered 2 exits: *Acc / *Sec) -2/Section 7 -1/Access -1/Command (discovered 3 exits: *Sur x2 / *Ac0) -1/Access_0 0b11 Command History --------- Turn | Location | Event 1 | -11/Scrapyard | Upgraded with Propulsion slot (x1) 1 | -11/Scrapyard | Upgraded with Utility slot (x2) 1 | -11/Scrapyard | Upgraded with Weapon slot (x1) 5 | -11/Scrapyard | Discovered new exit (range 15) 49 | -11/Scrapyard | Entered Materials 309 | -10/Materials | Build established: Mutant 371 | -10/Materials | Core integrity fell below 50% 496 | -10/Materials | Identified exit to Mines 579 | -10/Materials | Discovered new exit (range 12) 591 | -10/Materials | Discovered new exit (range 9) 614 | -10/Materials | Core integrity fell below 20% 620 | -10/Materials | Reached level 2 633 | -10/Materials | Discovered new exit (range 13) 651 | -10/Materials | Upgraded with Utility slot (x1) 717 | -10/Materials | Entered Mines 717 | -10/Mines | Accompanied by 1 ally 742 | -10/Mines | Build established: Scavenger-Mutant 750 | -10/Mines | Discovered new exit (range 12) 755 | -10/Mines | Learned Materials interactive machine intel 863 | -10/Mines | Learned 2 Materials zone layouts 892 | -10/Mines | Joined a pair of Derelicts in attacking an 0b10 outpost 997 | -10/Mines | Deemed a non-threat by the Exiles lab entrance 997 | -10/Mines | Discovered new exit (range 5) 999 | -10/Mines | Entered Exiles 1001 | -10/Exiles | Reached level 3 1005 | -10/Exiles | Discovered new exit (range 15) 1010 | -10/Exiles | Met 8R-AWN 1010 | -10/Exiles | Upgraded with Utility slot (x1) 1016 | -10/Exiles | Met EX-HEX 1034 | -10/Exiles | Met EX-DEC 1041 | -10/Exiles | Learned location of Zion (-6) 1053 | -10/Exiles | Discovered new exit (range 14) 1057 | -10/Exiles | Entered Mines 1068 | -9/Mines | Assembled infested the area 1073 | -9/Mines | Assisted by a Guerilla fighting off Assembled 1124 | -9/Mines | Learned Materials trap positions 1187 | -9/Mines | Discovered new exit (range 10) 1189 | -9/Mines | Learned 2 Materials zone layouts 1206 | -9/Mines | Entered Materials 1207 | -8/Materials | Identified exit to Storage 1207 | -8/Materials | Core integrity fell below 50% 1208 | -8/Materials | Loaded intel: 10 trap records 1208 | -8/Materials | Reached level 4 1208 | -8/Materials | Upgraded with Propulsion slot (x1) 1209 | -8/Materials | Loaded intel: 19 interactive machine locations 1410 | -8/Materials | Reached level 5 1422 | -8/Materials | Upgraded with Utility slot (x1) 1598 | -8/Materials | Reached level 6 1652 | -8/Materials | Discovered new exit (range 16) 1745 | -8/Materials | Discovered new exit (range 15) 1784 | -8/Materials | Core integrity fell below 20% 1840 | -8/Materials | Discovered new exit (range 10) 1912 | -8/Materials | Reached level 7 1962 | -8/Materials | Entered Storage 1962 | -8/Storage | Accompanied by 1 ally 2015 | -8/Storage | Build established: Hacker-Sprinter 2080 | -8/Storage | Reached level 8 2100 | -8/Storage | Identified exit to Factory 2258 | -8/Storage | Discovered new exit (range 5) 2349 | -8/Storage | Reached level 9 2380 | -8/Storage | Upgraded with Utility slot (x1) 2423 | -8/Storage | Entered Factory 2423 | -7/Factory | Accompanied by 1 ally 2424 | -7/Factory | Core integrity fell below 50% 2425 | -7/Factory | Reached level 10 2571 | -7/Factory | Identified exit to Lower Caves 2836 | -7/Factory | Discovered new exit (range 7) 2841 | -7/Factory | Identified exit to Factory 3090 | -7/Factory | Fabricated Imp. Cesium-ion Thruster? 3109 | -7/Factory | Local fabrication network quarantined 3165 | -7/Factory | Discovered exit to Factory (range 7) 3224 | -7/Factory | System Shield fried by hacking feedback 3263 | -7/Factory | Manually triggered Chute Trap 3263 | -7/Factory | Sucked down chute 3263 | -7/Factory | Entered Waste 3263 | -7/Waste | The area was eerily silent 3300 | -7/Waste | 3 allies followed down the chute 3305 | -7/Waste | Discovered new exit (range 12) 3389 | -7/Waste | Identified exit to Factory 3403 | -7/Waste | Entered Factory 3403 | -7/Factory | Accompanied by 3 allies 3599 | -7/Factory | Fabricated Imp. Cesium-ion Thruster (x1) 3672 | -7/Factory | Fabricated Imp. Cesium-ion Thruster? 3698 | -7/Factory | Build established: Wizard-Sprinter 3719 | -7/Factory | P-60 Hacker assimilated allied Technician 4c 3720 | -7/Factory | Reached level 11 3809 | -7/Factory | Local fabrication network quarantined 3965 | -7/Factory | Entered Lower Caves 3965 | -7/Lower Caves | Accompanied by 5 allies 4021 | -7/Lower Caves | Encountered a Warlord checkpoint 4186 | -7/Lower Caves | Discovered new exit (range 15) 4190 | -7/Lower Caves | Identified exit to Lower Caves 4214 | -7/Lower Caves | Entered another Lower Caves area 4214 | -7/Lower Caves | Accompanied by 5 allies 4216 | -7/Lower Caves | Reached level 12 4219 | -7/Lower Caves | Upgraded with Utility slot (x1) 4306 | -7/Lower Caves | Attracted the attention of an 0b10 outpost 4342 | -7/Lower Caves | Reached level 13 4360 | -7/Lower Caves | Encountered a Warlord checkpoint 4409 | -7/Lower Caves | Discovered new exit (range 14) 4411 | -7/Lower Caves | Identified exit to Data Miner 4455 | -7/Lower Caves | Entered Data Miner 4455 | -7/Data Miner | Accompanied by 2 allies 4456 | -7/Data Miner | Discovered new exit (range 6) 4462 | -7/Data Miner | Met Data Miner 4468 | -7/Data Miner | Learned location of Section 7 (-2) 4468 | -7/Data Miner | Acquired the access code to Warlord's prototype stash 4472 | -7/Data Miner | Received God Mode back door access code from Data Miner 4482 | -7/Data Miner | Destroyed Data Miner 4485 | -7/Data Miner | Found Prototype Hackware 4485 | -7/Data Miner | Identified System Mapper 4488 | -7/Data Miner | Found Prototype Hackware 4488 | -7/Data Miner | Identified Ghost Barrier 4490 | -7/Data Miner | Found Prototype Hackware 4490 | -7/Data Miner | Identified Deep Network Scanner 4494 | -7/Data Miner | Data Conduit disabled 4518 | -7/Data Miner | Identified exit to Proximity Caves 4518 | -7/Data Miner | Entered Proximity Caves 4520 | -6/Proximity Caves | Reached level 14 4521 | -6/Proximity Caves | Upgraded with Utility slot (x1) 4636 | -6/Proximity Caves | Attracted the attention of an 0b10 outpost 4785 | -6/Proximity Caves | Attracted the attention of an 0b10 checkpoint 4818 | -6/Proximity Caves | Discovered exit to Factory (range 10) 4821 | -6/Proximity Caves | Entered Factory 4823 | -6/Factory | Reached level 15 4825 | -6/Factory | Upgraded with Power slot (x1) 4825 | -6/Factory | Upgraded with Weapon slot (x1) 4846 | -6/Factory | Identified exit to Lower Caves 5066 | -6/Factory | Discovered new exit (range 14) 5110 | -6/Factory | Reached level 16 5204 | -6/Factory | Fabricated Imp. Armor Integrity Analyzer (x1) 5221 | -6/Factory | Fabricated Exp. Signal Interpreter (x1) 5566 | -6/Factory | Fabricated Cld. Nuclear Pulse Thruster? 5872 | -6/Factory | Fabricated Cld. Nuclear Pulse Thruster (x1) 5917 | -6/Factory | Fabricated Cld. Nuclear Pulse Thruster? 6021 | -6/Factory | Local fabrication network quarantined 6030 | -6/Factory | Manually triggered Chute Trap 6030 | -6/Factory | Sucked down chute 6030 | -6/Factory | Entered Waste 6050 | -6/Waste | 4 allies followed down the chute 6078 | -6/Waste | Spotted C-40 Crusher 6086 | -6/Waste | Spotted C-40 Crusher 6117 | -6/Waste | Spotted C-40 Crusher 6132 | -6/Waste | Destroyed C-40 Crusher 6136 | -6/Waste | Spotted C-40 Crusher 6158 | -6/Waste | Destroyed C-40 Crusher 6179 | -6/Waste | Spotted C-40 Crusher 6185 | -6/Waste | Destroyed C-40 Crusher 6194 | -6/Waste | Found Damper Plating 6204 | -6/Waste | Spotted C-40 Crusher 6207 | -6/Waste | Destroyed C-40 Crusher 6235 | -6/Waste | Destroyed C-40 Crusher 6296 | -6/Waste | Destroyed C-40 Crusher 6314 | -6/Waste | Discovered new exit (range 13) 6348 | -6/Waste | Identified exit to Factory 6363 | -6/Waste | Warlord forces began an assault 6472 | -6/Waste | Entered Factory 6472 | -6/Factory | Accompanied by 20 allies 6520 | -6/Factory | Discovered new exit (range 10) 6522 | -6/Factory | Identified exit to Factory 6698 | -6/Factory | Fabricated Exp. Targeting Computer (x1) 6702 | -6/Factory | Spotted B-75 Beast 6712 | -6/Factory | Reached level 17 6712 | -6/Factory | Allies destroyed B-75 Beast 6712 | -6/Factory | Upgraded with Utility slot (x1) 6776 | -6/Factory | Fabricated Adv. Salvage Targeting Computer? 6834 | -6/Factory | Fabricated Hyp. Coil Gun (x2) 6881 | -6/Factory | Local fabrication network quarantined 6973 | -6/Factory | Central database locked down 7043 | -6/Factory | Reached level 18 7213 | -6/Factory | Reached level 19 7531 | -6/Factory | Entered Lower Caves 7531 | -6/Lower Caves | Accompanied by 8 allies 7540 | -6/Lower Caves | Learned Factory emergency access door positions 7568 | -6/Lower Caves | A Commander dispatched an escort 7569 | -6/Lower Caves | Learned Armory trap positions 7569 | -6/Lower Caves | Learned Research garrison access intel 7608 | -6/Lower Caves | Encountered a Warlord checkpoint 7668 | -6/Lower Caves | Discovered new exit (range 6) 7669 | -6/Lower Caves | Identified exit to Lower Caves 7763 | -6/Lower Caves | Entered another Lower Caves area 7763 | -6/Lower Caves | Accompanied by 8 allies 7764 | -6/Lower Caves | Commander's escort returned to base 7764 | -6/Lower Caves | Commander's escort returned to base 7811 | -6/Lower Caves | Encountered a Warlord checkpoint 7974 | -6/Lower Caves | Discovered new exit (range 14) 7979 | -6/Lower Caves | Identified exit to Zion 7980 | -6/Lower Caves | Entered Zion 7982 | -6/Zion | Reached level 20 7982 | -6/Zion | Upgraded with Utility slot (x1) 8011 | -6/Zion | Given A8's code to call for help 8095 | -6/Zion | Learned location of Armory (-3) 8188 | -6/Zion | Received a hallucinogenic algorithm 8204 | -6/Zion | Discovered new exit (range 10) 8206 | -6/Zion | Identified exit to Proximity Caves 8208 | -6/Zion | Entered Proximity Caves 8257 | -5/Proximity Caves | Attracted the attention of an 0b10 outpost 8324 | -5/Proximity Caves | Destroyed 7 combat bots 8359 | -5/Proximity Caves | Reached level 21 8671 | -5/Proximity Caves | Entered Factory 8672 | -5/Factory | Identified exit to Extension 8673 | -5/Factory | Reached level 22 8694 | -5/Factory | Identified exit to Upper Caves 8865 | -5/Factory | Fabricated Cld. Field Propulsion Drive (x1) 8898 | -5/Factory | Fabricated Cld. Field Propulsion Drive (x1) 8951 | -5/Factory | Fabricated Cld. Field Propulsion Drive? 9298 | -5/Factory | Fabricated Mni. Fusion Reactor (x1) 9763 | -5/Factory | Fabricated Mni. Fusion Reactor (x1) 9890 | -5/Factory | Fabricated Adv. Armor Integrity Analyzer (x1) 9898 | -5/Factory | Discovered new exit (range 16) 9903 | -5/Factory | Garrison activated, responded to threat 10260 | -5/Factory | Fabricated Exp. Targeting Computer (x1) 10431 | -5/Factory | Identified exit to Factory 10471 | -5/Factory | First assault squad dispatched 10503 | -5/Factory | Reached level 23 10679 | -5/Factory | Local fabrication network quarantined 10764 | -5/Factory | Destroyed 9 combat bots 10852 | -5/Factory | Entered Extension 10864 | -5/Extension | Rescued A7 10935 | -5/Extension | Rescued a captive Derelict 10939 | -5/Extension | Rescued a captive Derelict 10985 | -5/Extension | Rescued a captive Derelict 11161 | -5/Extension | Reached level 24 11174 | -5/Extension | Upgraded with Utility slot (x1) 11387 | -5/Extension | Spotted B-75 Beast 11401 | -5/Extension | Allies destroyed B-75 Beast 11407 | -5/Extension | Spotted B-75 Beast 11420 | -5/Extension | Allies destroyed B-75 Beast 11457 | -5/Extension | Rescued a captive Derelict 11568 | -5/Extension | Rescued a captive Derelict 11623 | -5/Extension | Discovered new exit (range 6) 11624 | -5/Extension | Identified exit to Cetus 11633 | -5/Extension | Disrupted transfer network 11674 | -5/Extension | Entered Cetus 11674 | -5/Cetus | Accompanied by 13 allies 11679 | -5/Cetus | Acquired a Cetus Manufacturing Module code from A7 11684 | -5/Cetus | Spotted Cetus Guard 11684 | -5/Cetus | Spotted Cetus Guard 11691 | -5/Cetus | Spotted Cetus Guard 11693 | -5/Cetus | Spotted Cetus Guard 11693 | -5/Cetus | Destroyed Cetus Guard 11695 | -5/Cetus | Allies destroyed Cetus Guard 11697 | -5/Cetus | Destroyed Cetus Guard 11726 | -5/Cetus | Started Cetus Manufacturing Module 11735 | -5/Cetus | Escorted A7 to Cetus Mainframe 11751 | -5/Cetus | Manufactured an Enhanced Grunt 11776 | -5/Cetus | Manufactured an Enhanced Grunt 11801 | -5/Cetus | Manufactured an Enhanced Grunt 11826 | -5/Cetus | Manufactured an Enhanced Grunt 11851 | -5/Cetus | Manufactured an Enhanced Grunt 11891 | -5/Cetus | Discovered new exit (range 15) 11910 | -5/Cetus | Destroyed Cetus Guard 11917 | -5/Cetus | Destroyed Cetus Guard 11917 | -5/Cetus | Destroyed Cetus Guard 11920 | -5/Cetus | Spotted Cetus Guard 11924 | -5/Cetus | Allies destroyed Cetus Guard 11998 | -5/Cetus | Destroyed A7 12001 | -5/Cetus | Found Med. Regenerative Plating 12003 | -5/Cetus | Extracted ID and sensor layout for unrecognized location from A7's data core 12045 | -5/Cetus | Identified exit to Archives 12059 | -5/Cetus | Entered Archives 12059 | -5/Archives | Accompanied by 5 allies 12061 | -5/Archives | Reached level 25 12098 | -5/Archives | Discovered new exit (range 14) 12101 | -5/Archives | Identified exit to Hub_04(d) 12132 | -5/Archives | Entered Hub_04(d) 12132 | -5/Hub_04(d) | Accompanied by 4 allies 12363 | -5/Hub_04(d) | Network Hub disabled 12367 | -5/Hub_04(d) | Network Hub disabled 12440 | -5/Hub_04(d) | Spotted Lightning 12451 | -5/Hub_04(d) | Spotted Lightning 12452 | -5/Hub_04(d) | Spotted Lightning 12456 | -5/Hub_04(d) | Destroyed Lightning 12477 | -5/Hub_04(d) | Destroyed Lightning 12495 | -5/Hub_04(d) | Destroyed Lightning 12526 | -5/Hub_04(d) | Found Prototype Device 12526 | -5/Hub_04(d) | Identified EM Dispersion Field 12531 | -5/Hub_04(d) | Found Prototype Energy Cannon 12531 | -5/Hub_04(d) | Identified EMDS 12539 | -5/Hub_04(d) | Found Prototype Device 12540 | -5/Hub_04(d) | Identified Exp. Phase Shifter 12567 | -5/Hub_04(d) | Entered Factory 12568 | -4/Factory | Identified exit to Research 12575 | -4/Factory | Found Quantum Capacitor 12672 | -4/Factory | Local fabrication network quarantined 12676 | -4/Factory | Fabricated Cld. Field Propulsion Drive (x1) 12751 | -4/Factory | Discovered new exit (range 9) 12754 | -4/Factory | Identified exit to Upper Caves 12792 | -4/Factory | Central database locked down 12849 | -4/Factory | Reached level 26 12860 | -4/Factory | Upgraded with Propulsion slot (x1) 13078 | -4/Factory | Found Prototype Hackware 13145 | -4/Factory | Entered Upper Caves 13196 | -4/Upper Caves | Attracted the attention of an 0b10 checkpoint 13266 | -4/Upper Caves | Discovered new exit (range 64) 13285 | -4/Upper Caves | Destroyed 8 combat bots 13333 | -4/Upper Caves | Learned Research trap positions 13333 | -4/Upper Caves | Learned Research stockpile data 13333 | -4/Upper Caves | Identified exit to Upper Caves 13382 | -4/Upper Caves | Encountered a Warlord checkpoint 13412 | -4/Upper Caves | Entered another Upper Caves area 13491 | -4/Upper Caves | Learned 6 Proximity Caves zone layouts 13491 | -4/Upper Caves | Learned Extension emergency access door positions 13491 | -4/Upper Caves | Learned Research terminal intel 13501 | -4/Upper Caves | Destroyed 9 combat bots 13501 | -4/Upper Caves | Learned Research emergency access door positions 13505 | -4/Upper Caves | Attracted the attention of an 0b10 base 13547 | -4/Upper Caves | Reached level 27 13604 | -4/Upper Caves | Attracted the attention of an 0b10 checkpoint 13627 | -4/Upper Caves | Destroyed 10 combat bots 13677 | -4/Upper Caves | Discovered new exit (range 11) 13681 | -4/Upper Caves | Identified exit to Warlord 13688 | -4/Upper Caves | Learned location of 1 exit from Research 13695 | -4/Upper Caves | Entered Warlord 13732 | -4/Warlord | Met Warlord 13734 | -4/Warlord | Opened Warlord's prototype stash 13743 | -4/Warlord | Found Prototype Device 13743 | -4/Warlord | Identified Thermal Barrier 13746 | -4/Warlord | Found Prototype Device 13746 | -4/Warlord | Identified Exp. Cloaking Device 13752 | -4/Warlord | Found Ghost Barrier 13757 | -4/Warlord | Warlord's base attacked by MAIN.C 14000 | -4/Warlord | Warlord forces counterattacked 14003 | -4/Warlord | Destroyed 7 combat bots 14098 | -4/Warlord | Discovered new exit (range 9) 14109 | -4/Warlord | Identified exit to Proximity Caves 14111 | -4/Warlord | Entered Proximity Caves 14121 | -3/Proximity Caves | Destroyed 14 combat bots 14133 | -3/Proximity Caves | Reached level 28 14162 | -3/Proximity Caves | Attracted the attention of an 0b10 base 14186 | -3/Proximity Caves | Learned location of 1 exit from Research 14186 | -3/Proximity Caves | Learned Extension emergency access door positions 14186 | -3/Proximity Caves | Learned Armory garrison access intel 14392 | -3/Proximity Caves | Entered Research 14393 | -3/Research | Identified exit to Research 14393 | -3/Research | Identified exit to Testing 14394 | -3/Research | Loaded intel: 99 trap records 14397 | -3/Research | Loaded intel: 17 terminal locations 14398 | -3/Research | Loaded intel: 3 garrison access locations 14419 | -3/Research | Identified exit to Armory 14488 | -3/Research | Local fabrication network quarantined 14504 | -3/Research | Fabricated Cld. Q-thruster (x1) 14592 | -3/Research | Revision forces began assault on 0b10 14624 | -3/Research | Reached level 29 14631 | -3/Research | Upgraded with Utility slot (x1) 14673 | -3/Research | Met up with Revision 17++ 14713 | -3/Research | Entered Testing 14742 | -3/Testing | Found Prototype Energy Cannon 14742 | -3/Testing | Identified Cld. Nova Cannon 14790 | -3/Testing | Discovered exit to Research (range 5) 14822 | -3/Testing | Found Prototype Ballistic Gun 14823 | -3/Testing | Identified Hyp. Multirail 14925 | -3/Testing | Fabricated Cld. Q-thruster (x1) 14952 | -3/Testing | Fabricated Exp. Armor Integrity Analyzer? 14962 | -3/Testing | Fabricated Cld. Q-thruster? 15040 | -3/Testing | Destroyed 7 combat bots 15119 | -3/Testing | Spotted WI-KX9(L) 15119 | -3/Testing | Spotted S2-0ZK(L) 15119 | -3/Testing | Spotted M1-157(L) 15121 | -3/Testing | Rewired WI-KX9(L) 15122 | -3/Testing | Spotted Alpha 7 15130 | -3/Testing | Rewired S2-0ZK(L) 15134 | -3/Testing | Allies destroyed Alpha 7 15137 | -3/Testing | Found Exp. Target Analyzer 15159 | -3/Testing | Found Prototype Ballistic Cannon 15159 | -3/Testing | Identified Perforator 15166 | -3/Testing | Reached level 30 15362 | -3/Testing | Fabricated Adv. Particle Accelerator? 15777 | -3/Testing | Fabricated Imp. Q-thruster (x1) 16279 | -3/Testing | Fabricated Imp. Q-thruster (x1) 16525 | -3/Testing | Local fabrication network quarantined 16549 | -3/Testing | Entered Research 16549 | -2/Research | Warlord forces began assault on 0b10 16550 | -2/Research | Identified exit to Quarantine 16578 | -2/Research | Borebot progress halted 16583 | -2/Research | Fabricated Adv. Weapon Cycler (x2) 16620 | -2/Research | Fabricated Imp. Q-thruster (x1) 16657 | -2/Research | Fabricated Imp. Q-thruster (x1) 16659 | -2/Research | Research machine network offline 16679 | -2/Research | Reached level 31 16679 | -2/Research | Met up with Warlord 16681 | -2/Research | Upgraded with Utility slot (x1) 16723 | -2/Research | Spotted B-90 Cyclops 16739 | -2/Research | Destroyed B-90 Cyclops 16896 | -2/Research | Destroyed 9 combat bots 16950 | -2/Research | Local fabrication network quarantined 17009 | -2/Research | Borebot progress halted 17018 | -2/Research | Borebot progress halted 17075 | -2/Research | Borebot progress halted 17162 | -2/Research | Entered Quarantine 17164 | -2/Quarantine | Reached level 32 17186 | -2/Quarantine | Central database locked down 17308 | -2/Quarantine | Found Alien Artifact 17326 | -2/Quarantine | Upgraded with Weapon slot (x1) 17328 | -2/Quarantine | Identified Subatomic Replicator 17328 | -2/Quarantine | Used Subatomic Replicator to replicate Hyp. Multirail 17339 | -2/Quarantine | Found Alien Impact Weapon 17382 | -2/Quarantine | Cryocooling Duct disabled 17397 | -2/Quarantine | Ambient heat levels rising (+20) 17397 | -2/Quarantine | Non-combat units ordered to evacuate 17483 | -2/Quarantine | Found Alien Artifact 17514 | -2/Quarantine | Identified Transdimensional Reconstructor 17514 | -2/Quarantine | Identified Core Stripper 17519 | -2/Quarantine | Discovered new exit (range 12) 17538 | -2/Quarantine | Identified exit to Access 17563 | -2/Quarantine | Found Alien Artifact 17567 | -2/Quarantine | Identified Core Reset Matrix 17599 | -2/Quarantine | Found Alien Artifact 17618 | -2/Quarantine | Identified Hpw. Transdimensional Reconstructor 17644 | -2/Quarantine | Spotted Fortress 17672 | -2/Quarantine | Destroyed Fortress 17690 | -2/Quarantine | Found Exp. Force Field 17715 | -2/Quarantine | Discovered new exit (range 6) 17716 | -2/Quarantine | Identified exit to Section 7 17720 | -2/Quarantine | Entered Section 7 17722 | -2/Section 7 | Reached level 33 17775 | -2/Section 7 | Found Alien Artifact 17775 | -2/Section 7 | Identified Integrity Redistributor 17775 | -2/Section 7 | Used Integrity Redistributor, redistributed integrity from core (-0) 17797 | -2/Section 7 | Found Alien Artifact 17797 | -2/Section 7 | Identified Integrated Dissipator 17797 | -2/Section 7 | Installed Integrated Dissipator, increased core heat dissipation (+2%) 17847 | -2/Section 7 | Spotted B-90 Cyclops 17847 | -2/Section 7 | Discovered exit to Access (range 13) 17868 | -2/Section 7 | Spotted B-90 Cyclops 17917 | -2/Section 7 | Found Alien Artifact 17917 | -2/Section 7 | Identified Integrated Reactor 17917 | -2/Section 7 | Installed Integrated Reactor, increased core energy generation (+2%) 18072 | -2/Section 7 | Destroyed B-90 Cyclops 18226 | -2/Section 7 | Spotted S7 Guard 18244 | -2/Section 7 | Found Alien Artifact 18244 | -2/Section 7 | Identified Core Regenerator 18244 | -2/Section 7 | Used Core Regenerator, restored core integrity (+0) 18308 | -2/Section 7 | Spotted B-99 Colossus 18357 | -2/Section 7 | Found Alien Artifact 18357 | -2/Section 7 | Identified LRC Boosters 18357 | -2/Section 7 | Installed LRC Boosters, increased mass support (+10) 18359 | -2/Section 7 | Found Alien Artifact 18359 | -2/Section 7 | Identified LRC Energy Well 18359 | -2/Section 7 | Installed LRC Energy Well, increased energy storage capacity (+250) 18470 | -2/Section 7 | First assault squad dispatched 18503 | -2/Section 7 | Spotted S7 Guard 18504 | -2/Section 7 | Found Alien Artifact 18504 | -2/Section 7 | Identified Integrated Heat Negator 18504 | -2/Section 7 | Installed Integrated Heat Negator, increased core heat dissipation (+2%) 18568 | -2/Section 7 | Spotted Alpha 7 18582 | -2/Section 7 | Destroyed 9 combat bots 18585 | -2/Section 7 | Spotted Alpha 7 18596 | -2/Section 7 | Destroyed S7 Guard 18603 | -2/Section 7 | Destroyed Alpha 7 18613 | -2/Section 7 | Destroyed Alpha 7 18654 | -2/Section 7 | Found Exp. Targeting Computer 18662 | -2/Section 7 | Destroyed 9 combat bots 18818 | -2/Section 7 | Entered Access 18818 | -1/Access | Accompanied by 1 ally 18820 | -1/Access | Reached level 34 18900 | -1/Access | Energy Cycler disabled 18902 | -1/Access | Garrison activated, responded to threat 18958 | -1/Access | Spotted B-99 Colossus 18982 | -1/Access | Destroyed B-99 Colossus 19098 | -1/Access | Garrison activated, responded to threat 19098 | -1/Access | Reached level 35 19107 | -1/Access | Upgraded with Utility slot (x1) 19128 | -1/Access | Spotted B-99 Colossus 19185 | -1/Access | Destroyed B-99 Colossus 19252 | -1/Access | Identified exit to Command 19253 | -1/Access | Destroyed 8 combat bots 19363 | -1/Access | Garrison activated, responded to threat 19369 | -1/Access | Destroyed 12 combat bots 19427 | -1/Access | Fabricated Exp. Weapon Cycler? 19493 | -1/Access | Fabricated Exp. Core Analyzer (x1) 19524 | -1/Access | Local fabrication network quarantined 19531 | -1/Access | Fabricated Zero-point Reactor (x1) 19568 | -1/Access | First assault squad dispatched 19591 | -1/Access | Entered Command 19596 | -1/Command | Reached level 36 19769 | -1/Command | Destroyed 8 combat bots 19901 | -1/Command | Phase Generator disabled 20028 | -1/Command | Spotted M Guard 20028 | -1/Command | Spotted M Guard 20045 | -1/Command | Spotted Combat Programmer 20045 | -1/Command | Spotted Combat Programmer 20085 | -1/Command | Destroyed Combat Programmer 20089 | -1/Command | Destroyed Combat Programmer 20104 | -1/Command | Destroyed M Guard 20142 | -1/Command | Destroyed M Guard 20142 | -1/Command | Destroyed all MAIN.C guards 20145 | -1/Command | Found Prototype Device 20145 | -1/Command | Identified AEGIS Remote Shield 20151 | -1/Command | Found Zero-point Reactor 20430 | -1/Command | Spotted Striker 20430 | -1/Command | Spotted Alpha 7 20434 | -1/Command | Spotted Executioner 20452 | -1/Command | Destroyed Striker 20465 | -1/Command | Destroyed Executioner 20469 | -1/Command | Destroyed Executioner 20495 | -1/Command | Found Exp. Targeting Computer 20507 | -1/Command | Destroyed Alpha 7 20527 | -1/Command | Destroyed Striker 20535 | -1/Command | Destroyed Executioner 20553 | -1/Command | Spotted Executioner 20553 | -1/Command | Destroyed Executioner 20557 | -1/Command | Spotted Alpha 7 20576 | -1/Command | Destroyed Alpha 7 20592 | -1/Command | Spotted B-99 Colossus 20628 | -1/Command | Destroyed B-99 Colossus 20632 | -1/Command | Destroyed B-99 Colossus 20765 | -1/Command | Discovered new exit (range 8) 20806 | -1/Command | Build established: Machinist-Sprinter 20831 | -1/Command | Reached level 37 20855 | -1/Command | Core integrity fell below 50% 20874 | -1/Command | First assault squad dispatched 20893 | -1/Command | Destroyed 43 combat bots 20934 | -1/Command | High security lockdown imminent 21014 | -1/Command | High security lockdown engaged 21072 | -1/Command | Destroyed Striker 21075 | -1/Command | Destroyed Executioner 21146 | -1/Command | Reached level 38 21149 | -1/Command | Destroyed Striker 21152 | -1/Command | Destroyed Striker 21160 | -1/Command | Spotted Investigator 21163 | -1/Command | Scanned by Researcher 21163 | -1/Command | Destroyed Investigator 21202 | -1/Command | Destroyed 100 combat bots 21262 | -1/Command | Destroyed 25 combat bots 21303 | -1/Command | Destroyed Executioner 21330 | -1/Command | Destroyed 25 combat bots 21415 | -1/Command | Destroyed 16 combat bots 21496 | -1/Command | Destroyed 7 combat bots 21530 | -1/Command | Spotted B-99 Colossus 21543 | -1/Command | Destroyed B-99 Colossus 21554 | -1/Command | Spotted Striker 21560 | -1/Command | Destroyed Executioner 21560 | -1/Command | Spotted Striker 21562 | -1/Command | Spotted Executioner 21563 | -1/Command | Destroyed Executioner 21563 | -1/Command | Destroyed Striker 21566 | -1/Command | Destroyed Striker 21566 | -1/Command | Destroyed Executioner 21566 | -1/Command | Destroyed Striker 21593 | -1/Command | Destroyed 26 combat bots 21717 | -1/Command | Reached level 39 21730 | -1/Command | Upgraded with Utility slot (x1) 21751 | -1/Command | Spotted Striker 21755 | -1/Command | Spotted Executioner 21764 | -1/Command | Destroyed Executioner 21770 | -1/Command | Spotted Executioner 21770 | -1/Command | Destroyed Executioner 21771 | -1/Command | Spotted Executioner 21773 | -1/Command | Spotted Executioner 21773 | -1/Command | Spotted Investigator 21773 | -1/Command | Spotted Striker 21773 | -1/Command | Destroyed Striker 21773 | -1/Command | Destroyed Executioner 21773 | -1/Command | Destroyed Executioner 21775 | -1/Command | Spotted Striker 21776 | -1/Command | Destroyed Investigator 21782 | -1/Command | Spotted Executioner 21782 | -1/Command | Spotted Striker 21782 | -1/Command | Spotted Striker 21782 | -1/Command | Destroyed Striker 21782 | -1/Command | Destroyed Striker 21785 | -1/Command | Spotted Executioner 21787 | -1/Command | Spotted Executioner 21788 | -1/Command | Destroyed Executioner 21788 | -1/Command | Destroyed Striker 21794 | -1/Command | Destroyed Executioner 21800 | -1/Command | Destroyed Striker 21804 | -1/Command | Destroyed Executioner 21827 | -1/Command | Destroyed 118 combat bots 21880 | -1/Command | Found Exp. Targeting Computer 21955 | -1/Command | Destroyed 29 combat bots 22018 | -1/Command | Destroyed 20 combat bots 22150 | -1/Command | Destroyed 40 combat bots 22229 | -1/Command | Met MAIN.C 22231 | -1/Command | MAIN.C activated Command garrisons 22255 | -1/Command | 0b10 Conduit disabled 22262 | -1/Command | Destroyed MAIN.C Shell 22407 | -1/Command | Destroyed MAIN.C 22515 | -1/Command | Spotted B-99 Colossus 22527 | -1/Command | Destroyed B-99 Colossus 22531 | -1/Command | Discovered new exit (range 9) 22651 | -1/Command | Warped through subspace to slip node 22651 | -1/Command | Discovered new exit (range 5) 22654 | -1/Command | Identified exit to Access_0 22658 | -1/Command | Entered Access_0 22659 | -1/Access_0 | Architect warped through subspace 22660 | -1/Access_0 | Reached level 40 22718 | -1/Access_0 | Subspace Access Node disabled 22722 | -1/Access_0 | Architect warped through subspace 22772 | -1/Access_0 | Architect warped through subspace 22797 | -1/Access_0 | Found Prototype Device 22804 | -1/Access_0 | A6 warped into view 22827 | -1/Access_0 | Architect warped through subspace 22868 | -1/Access_0 | Architect warped through subspace 22880 | -1/Access_0 | Destroyed A6 22897 | -1/Access_0 | Subspace Access Node disabled 22905 | -1/Access_0 | Architect warped through subspace 22938 | -1/Access_0 | Architect warped through subspace 22952 | -1/Access_0 | Subspace Access Node disabled 22961 | -1/Access_0 | Architect warped through subspace 22983 | -1/Access_0 | Architect warped through subspace 23005 | -1/Access_0 | A5 warped into view 23022 | -1/Access_0 | Architect warped through subspace 23044 | -1/Access_0 | Architect warped through subspace 23054 | -1/Access_0 | Destroyed A5 23118 | -1/Access_0 | Subspace Access Node disabled 23178 | -1/Access_0 | Found Hpw. Transdimensional Reconstructor 23347 | -1/Access_0 | Destroyed A2 23363 | -1/Access_0 | Extracted Singularity Gate Test 138-C access codes from A2's data core 23367 | -1/Access_0 | Found Prototype Hackware 23379 | -1/Access_0 | Identified Desublimator 23635 | -1/Access_0 | A4 warped into view 23656 | -1/Access_0 | Destroyed A4 23716 | -1/Access_0 | Crushed by falling debris 23722 | -1/Access_0 | Identified Quantum Router 23783 | -1/Access_0 | Destroyed A8 23946 | -1/Access_0 | Started Test 138-B, establishing a local singularity 23950 | -1/Access_0 | Singularity Gate disabled 23951 | -1/Access_0 | Singularity Gate disabled 24133 | -1/Access_0 | A3 warped into view 24210 | -1/Access_0 | Destroyed A3 24298 | -1/Access_0 | Found Sigix Corpse 24364 | -1/Access_0 | Found Prototype Processor 24364 | -1/Access_0 | Identified Exp. Melee Analysis Suite 24367 | -1/Access_0 | Found Prototype Device 24367 | -1/Access_0 | Identified Exp. Shield Generator 24432 | -1/Access_0 | Destroyed Architect 24436 | -1/Access_0 | Found Prototype Hackware 24436 | -1/Access_0 | Identified Architect God Chip D 24438 | -1/Access_0 | Extracted unknown sensor trigger ID from Architect's data core 24441 | -1/Access_0 | Found Prototype Hackware 24441 | -1/Access_0 | Identified Architect God Chip A 24449 | -1/Access_0 | Found Prototype Protection 24449 | -1/Access_0 | Identified Centrium Linked Plating 24456 | -1/Access_0 | Warped through subspace to slip node 24456 | -1/Access_0 | Discovered new exit (range 8) 24460 | -1/Access_0 | Identified exit to Surface 24475 | *** | Establishing 0b11! Last Messages --------------- 24441_ Acquired Prototype Hackware. 24441_ Identified Architect God Chip A. 24443_ Dropped Exp. Force Field. 24443_ Acquired Prototype Device. 24443_ Identified Exp. Power Amplifier. 24445_ Dropped Exp. Power Amplifier. 24446_ Acquired Exp. Force Field. 24449_ Dropped Desublimator. 24449_ Acquired Prototype Protection. 24449_ Identified Centrium Linked Plating. 24451_ Dropped Centrium Linked Plating. 24452_ Acquired Desublimator. 24453_ Acquired 20 matter. 24456_ Warped through subspace, drawn to slip node. 24456_ EXIT=FOUND 24460_ EXIT=IDENTIFIED: SURFACE 24461_ HV Slug penetrates Dimensional Slip Node. 24462_ HV Slug penetrates Wall. 24470_ Dimensional Slip Node implodes. 24472_ The unstable cave ceiling collapses. Map ----- +----------------------------------------------------+ | | | | | | | | | | | | | | | | | | | | | | | | | | | | | | | | | ?????????????????????????????????????????????????? | | ?????????????????????????????????????????????????? | | ?????????????????????????????????????????????????? | | ?????????????????????????????????????????????????? | | ?????????????????????????????????????????????????? | | ?????????????????????????????????????????????????? | | ????????????????????????###??????????????????????? | | ???????????????????????## ##?????????????????????? | | ???????????????????????# #?????????????????????? | | ???????????????????????# @ #?????????????????????? | | ??????????????????????## #?????????????????????? | | ?????????????????????? #?????????????????????? | | ????????????????????? ?????????????????????? | | ????????????????????# #????????????????????? | | ??????????????????? ???????????????????? | | ??????????????????# #??????????????????? | | ??????????????????# ##??????????????????? | | ??????????????????# # #??????????????????? | | ??????????????????# #??????????????????? | | ??????????????????##? ##??????????????????? | | ???????????????????? #???????????????????? | | ????????????????????## # ###???????????????????? | | ?????????????????????#######?????????????????????? | | ?????????????????????????????????????????????????? | | ?????????????????????????????????????????????????? | | ?????????????????????????????????????????????????? | | ?????????????????????????????????????????????????? | | ?????????????????????????????????????????????????? | | ?????????????????????????????????????????????????? | | ?????????????????????????????????????????????????? | | ?????????????????????????????????????????????????? | | ?????????????????????????????????????????????????? | | ?????????????????????????????????????????????????? | | ?????????????????????????????????????????????????? | +----------------------------------------------------+ Best States ------------- Heat Dissipation 135 Energy Generation 77 Energy Capacity 1680 Matter Stores 800 Matter Capacity 800 Sight Range 16 Robot Scan Range 20 Terrain Scan Density 10 Cloak Strength 3 Power Amplification 30 Armor Coverage 1200 Resistance: EM 90 Weapon Cycling 30 Phase Shifting 20 Evasion (%) 85 Targeting Accuracy 60 Target Analysis 12 Core Analysis 15 Armor Integrity Analysis 90 Particle Charging 50 Salvage Targeting 3 Offensive Hacking 130 Defensive Hacking 105 Item Schematics ----------------- Xenon Bombardment Thruster | -8/Storage | Hacked EM Shield | -8/Storage | Hacked Hacking Suite | -7/Factory | Hacked System Shield | -7/Factory | Hacked Cld. VTOL Module | -7/Factory | Hacked Imp. Hacking Suite | -7/Factory | Hacked Imp. System Shield | -7/Factory | Hacked Imp. Cesium-ion Thruster | -7/Factory | Hacked Exp. Signal Interpreter | -7/Factory | Hacked Imp. Armor Integrity Analyzer | -7/Factory | Hacked Spear | -7/Factory | Hacked Combat Drone Bay | -7/Data Miner | Free Lgt. Regenerative Plating | -7/Data Miner | Free Cmb. Gravmag System | -7/Data Miner | Free Exp. Sensor Array | -7/Data Miner | Free Exp. Targeting Computer | -7/Data Miner | Free Tactical Coordination Suite | -7/Data Miner | Free Cloaking Device | -7/Data Miner | Free Kinetic Spear | -7/Data Miner | Free HERF Cannon | -6/Factory | Hacked Force Rifle | -6/Factory | Hacked Cld. Nuclear Pulse Thruster | -6/Factory | Hacked Quantum Capacitor | -6/Factory | Hacked Drone Bay | -6/Factory | Hacked Imp. Weapon Cycler | -6/Factory | Hacked Field Propulsion Drive | -6/Factory | Hacked Adv. Salvage Targeting Computer | -6/Factory | Hacked Hyp. Mass Driver | -6/Factory | Hacked Imp. Proton Missile Launcher | -6/Factory | Hacked Hyp. Coil Gun | -6/Factory | Hacked System Restoration Module | -6/Factory | Hacked Adv. Armor Integrity Analyzer | -6/Factory | Hacked Plasma Flamer | -6/Zion | Free Ripper | -6/Zion | Free Cld. Field Propulsion Drive | -5/Factory | Hacked Mni. Fusion Reactor | -5/Factory | Hacked Adv. Target Analyzer | -5/Factory | Hacked Adv. Transmission Jammer | -5/Factory | Hacked Lance | -5/Factory | Hacked Adv. Particle Charger | -5/Factory | Hacked Point Defense System | -5/Factory | Hacked Com. HERF Cannon | -5/Extension | Hacked Imp. Recalibrator | -5/Extension | Hacked Adv. Cooling System | -5/Extension | Hacked Adv. Weapon Cycler | -5/Hub_04(d) | Hacked Neutrino Core | -5/Hub_04(d) | Hacked Adv. Core Analyzer | -5/Hub_04(d) | Hacked Particle Accelerator | -4/Factory | Hacked Exp. Cooling System | -3/Proximity Caves | Hacked Exp. Hacking Suite | -3/Proximity Caves | Hacked Exp. System Shield | -3/Proximity Caves | Hacked Cld. Q-thruster | -3/Research | Hacked Adv. Particle Accelerator | -3/Research | Hacked Exp. Armor Integrity Analyzer | -3/Research | Hacked Exp. Target Analyzer | -3/Research | Hacked Coolant Network | -3/Research | Hacked Zero-point Reactor | -3/Research | Hacked Adv. Force Field | -3/Testing | Hacked Cmb. Linear Gravjet | -3/Testing | Hacked Prc. Phase Gun | -3/Testing | Hacked Hvy. Dispersion Rifle | -3/Testing | Hacked Com. Mass Driver | -3/Testing | Hacked Exp. Force Field | -3/Testing | Hacked Imp. Q-thruster | -3/Testing | Hacked Exp. Weapon Cycler | -1/Access | Hacked Adv. Reaction Control System | -1/Access | Hacked Exp. Core Analyzer | -1/Access | Hacked Quantum Reactor | -1/Command | Hacked Cld. Linear Gravjet | -1/Command | Hacked Robot Schematics ------------------ S-27 Virus | -7/Data Miner | Free G-50 Soldier | -7/Data Miner | Free G-67 Veteran | -7/Data Miner | Free X-72 Disruptor | -7/Data Miner | Free H-66 Slayer | -7/Data Miner | Free I-36 Angel | -7/Data Miner | Free A-15 Conveyor | -5/Extension | Hacked Fabricated ------------ Imp. Cesium-ion Thruster | x1 | -7/Factory Imp. Cesium-ion Thruster | x1 | -7/Factory Imp. Cesium-ion Thruster | x1 | -7/Factory Imp. Armor Integrity Analyzer | x1 | -6/Factory Exp. Signal Interpreter | x1 | -6/Factory Cld. Nuclear Pulse Thruster | x1 | -6/Factory Cld. Nuclear Pulse Thruster | x1 | -6/Factory Cld. Nuclear Pulse Thruster | x1 | -6/Factory Exp. Targeting Computer | x1 | -6/Factory Adv. Salvage Targeting Computer | x1 | -6/Factory Hyp. Coil Gun | x2 | -6/Factory Cld. Field Propulsion Drive | x1 | -5/Factory Cld. Field Propulsion Drive | x1 | -5/Factory Cld. Field Propulsion Drive | x1 | -5/Factory Mni. Fusion Reactor | x1 | -5/Factory Mni. Fusion Reactor | x1 | -5/Factory Adv. Armor Integrity Analyzer | x1 | -5/Factory Exp. Targeting Computer | x1 | -5/Factory Cld. Field Propulsion Drive | x1 | -4/Factory Cld. Q-thruster | x1 | -3/Research Cld. Q-thruster | x1 | -3/Testing Exp. Armor Integrity Analyzer | x1 | -3/Testing Cld. Q-thruster | x1 | -3/Testing Adv. Particle Accelerator | x1 | -3/Testing Imp. Q-thruster | x1 | -3/Testing Imp. Q-thruster | x1 | -3/Testing Adv. Weapon Cycler | x2 | -2/Research Imp. Q-thruster | x1 | -2/Research Imp. Q-thruster | x1 | -2/Research Exp. Weapon Cycler | x1 | -1/Access Exp. Core Analyzer | x1 | -1/Access Zero-point Reactor | x1 | -1/Access Alien Tech Used ----------------- Subatomic Replicator Core Stripper Integrity Redistributor Integrated Dissipator Integrated Reactor Core Regenerator LRC Boosters LRC Energy Well Integrated Heat Negator High-powered Transdimensional Reconstructor Achievements -------------- None Challenges ------------ None RPGLIKE | -11 -10 -10 -10 -9 -8 -8 -7 -7 -7 -7 -7 -7 -6 -6 -6 -6 -6 -6 -6 -5 -5 -5 -5 -5 -5 -4 -4 -4 -4 -3 -3 -3 -2 -2 -2 -1 -1 -1 --------- Run | Scr Mat Min Exi Min Mat Sto Fac Was Fac Low Low Dat Pro Fac Was Fac Low Low Zio Pro Fac Ext Cet Arc Hub Fac Upp Upp War Pro Res Tes Res Qua Sec Acc Com Ac0 Levels Raised 39 | . 1 . 1 . 4 2 1 . 1 . 2 . 1 2 . 3 . . 1 1 2 1 . 1 . 1 . 1 . 1 1 1 1 1 1 2 4 1 XP Earned 62079 | 3000 1675 1275 200 750 5265 3020 2187 200 1210 500 1749 760 2100 1725 200 4808 403 357 204 2334 2961 974 1089 161 636 1256 552 621 747 998 1520 1161 2867 1062 1809 2432 6626 685 XP Spent 59885 | 2970 1100 160 1400 . 5850 3125 1250 400 . . 2300 . 2600 2800 . 2900 . . 3200 1750 2000 3500 . . 1300 1100 . . . . 3800 . 4100 1100 . 4400 6780 . Upgrades 56 | 8 1 3 1 . 11 6 1 2 . . 1 . 1 3 . 1 . . 1 1 1 1 . . 2 1 . . . . 1 . 1 1 . 1 6 . Power Slot 1 | . . . . . . . . . . . . . . 1 . . . . . . . . . . . . . . . . . . . . . . . . Propulsion Slot 3 | 1 . . . . 1 . . . . . . . . . . . . . . . . . . . . 1 . . . . . . . . . . . . Utility Slot 15 | 2 1 . 1 . 1 1 . . . . 1 . 1 . . 1 . . 1 . . 1 . . . . . . . . 1 . 1 . . 1 1 . Weapon Slot 3 | 1 . . . . . . . . . . . . . 1 . . . . . . . . . . . . . . . . . . . 1 . . . . Core Integrity 2 | . . 2 . . . . . . . . . . . . . . . . . . . . . . . . . . . . . . . . . . . . Heat Dissipation 6 | 2 . . . . . . . . . . . . . . . . . . . . . . . . . . . . . . . . . . . . 4 . Energy Generation 1 | 1 . . . . . . . . . . . . . . . . . . . . . . . . . . . . . . . . . . . . . . Energy Storage 1 | . . . . . . . . . . . . . . . . . . . . . . . . . 1 . . . . . . . . . . . . . Mass Support 4 | . . 1 . . 1 . . . . . . . . . . . . . . . . . . . 1 . . . . . . . . . . . 1 . Inventory Capacity 8 | 1 . . . . 3 . 1 . . . . . . 1 . . . . . 1 1 . . . . . . . . . . . . . . . . . Sensor Range 10 | . . . . . 5 5 . . . . . . . . . . . . . . . . . . . . . . . . . . . . . . . . Hack Attack % 1 | . . . . . . . . 1 . . . . . . . . . . . . . . . . . . . . . . . . . . . . . . Hack Defense % 1 | . . . . . . . . 1 . . . . . . . . . . . . . . . . . . . . . . . . . . . . . . Protomatter Created 17822 | . . 93 . 34 221 195 33 . 48 . . . 300 . 88 128 158 97 . 434 695 300 327 289 203 406 491 367 384 316 197 537 607 451 1114 793 7063 1453 Integrity Restored 14374 | . . 447 . 54 585 366 99 491 45 12 307 . 515 . 100 94 56 148 . 563 1169 298 288 50 565 347 338 201 315 377 174 307 428 484 645 351 2494 1661 Core 11448 | . . 447 . 54 585 366 99 437 35 12 218 . 424 . 36 81 52 148 . 427 1117 81 82 45 441 290 275 157 229 287 136 239 387 350 469 270 1877 1295 Parts 2926 | . . . . . . . . 54 10 . 89 . 91 . 64 13 4 . . 136 52 217 206 5 124 57 63 44 86 90 38 68 41 134 176 81 617 366 Protomatter Decayed 17166 | . . . . 44 . 48 . 100 32 . 94 . 81 . 54 286 138 74 . 318 351 292 363 126 113 285 303 245 543 144 485 566 2409 349 892 668 6881 882 Game ------ Seed CompositeTransmissionFilter Manual? 0 Play Time 06:18:38 Cumulative 1071.2 hours Start 2020.07.05 @ 20:54:24 End 2020.07.06 @ 15:45:52 Sessions 3 Manual Loads 0 Difficulty Rogue Special Mode Winter2019/RPGLIKE Game No. 344 Rogue 344 Adventurer 0 Explorer 0 Win Type 1 Total 78 Types 14/9/35/5/1/2/12 Lore% 97 Gallery% 97 Achievement% 85 Wizard Run 0 Options --------- ASCII 0 Keyboard 0 Movement Numpad Keybinds 0 Fullscreen 1 Font 18/SmallcapsGlow Map View 76x50 Tactical HUD 1 Map Filters NONE Filters NONE Steam 1 RUN: 39c6e28e-d447-4005-a78d-ad7c1c33e98e